Workbook

Sheet Instructions
A1: Project Name: | C1: Reclaim Model - Overview of Program
B2: Jericho | C2: All Users are urged to read the Guide for Using the Reclaim Model Spreadsheet.
C3: Note the WorkSheet tabs at the bottom of your Window.
C4: Please scroll down for more information
C5: Follow these internal links for more informantion:
C6: The reclaim menu
C7: What's on the various worksheets
C8: Limitations of the Reclaim Program
C9: Conditions of Use
A11: Reclaim Menu | C11: The default menu bar has been replaced with a menu bar specific to the Reclaim Model.
B12: Clear | C12: This option deletes all data input, deletes any duplicated elements and blanks out the project name
B13: Duplicate | C13: This option Duplicates components of the project. E.g. if there is more than one Open Pit, use duplicate to add a second Open Pit. Quantities for the new Open Pit are erased, but the Cost Codes are carried over from the original Open Pit. The new Open Pit subtotal is added to the Summary page.
B14: Unit Costs | C14: This option opens a new window with the unit costs. NOTE: the unit cost table now has a filter in the 'UNITS' column. You can select to only see a particular unit (eg km) or several units or all units.
B15: Print All | C15: This option prints the Summary Worksheet, Unit Cost Worksheet, and all the component worksheets. Individual worksheets can be printed directly using standard printing methods, such as Ctl - P.
B16: Quit | C16: You can press Quit from the menu, or you can exit using standard methods, such as alt - F4
B17: Help | C17: Displays this page.
A19: WorkSheets
C20: The reclaim model makes use of separate worksheets to organize the information. After this Instruction Worksheet, there is a Summary Worksheet, followed by 1 worksheet for each reclamation component type. After the component worksheets, there is a list of the Unit Costs, and finally a Title worksheet listing authors and revision dates. You can navigate between the worksheets by selecting the worksheet's tab, at the bottom of your screen.
B22: Summary | C22: This contains the cost for each component, and the ongoing Post Closure costs. The model sums all the reclamation costs and presents the totals according to component type in the Reclamation Cost Summary table. Capital costs are presented separately from ongoing costs, such as monitoring, maintenance and water treatment.
B24: Components | C24: This is where the component cost information is entered. Optionally, you can edit, add, or delete activities from the components. This should be done with care: certain areas of the spreadsheet are defined and used by other parts of the program.
C26: Any worksheet can be printed individually. Use the Print All function on the menu to print all component worksheets with non-zero balances.
C27: Please do not change the column width, or the contents of the first column on the component worksheets.
B29: Unit Costs | C29: This contains the look up table with costs for typical work
A31: Limitations | C31: Certain Limitations must be kept in mind when using the Reclaim Program.
C32: The Reclaim Program will NOT work if the worksheets are changed such that these assumptions are no longer true.
B34: WorkSheet Names | C34: The names of the worksheets must not be changed. New worksheets can be inserted only if Workbook Protection is turned off using the default menu.
B35: Defined Names | C35: Certain ranges have defined names, which must not be changed. These names appear in the "Name Box" to the left of the formula bar.
B36: First line of data | C36: The first line of data for any component starts on line 4. Do not change the first 4 lines of a component worksheet, ie the name and column titles.
B37: Cell A2 | C37: Cell A2 on the component sheet MUST always contain the count of that component. This is programmatically controlled. DO NOT CHANGE.
B38: Column A | C38: This must have an entry in every row until the subtotal, for the calculation of where the subtotal is
B39: L,H, Spec | C39: The 3 fields at the bottom of this sheet must not be touched. They are required,
C40: to make the lookup function work in Unit Costs.
B41: Adding Lines | C41: You can add lines to components and the unit cost table, as long as they are not the last lines. The last line might fall outside the named ranges. You can check the size of the named range by selecting the name from the drop down box at the top left of the sheet. Usually this box has a cel reference, or a name.
B42: Printing | C42: A component will only be printed if its sub-total is greater than zero. In addition, a component and the summary sheet cannot be printed if there is an error.
C43: Printing has been set to print to 1 page per component. If components are duplicated,they will each have their own page.
B45: Conditions of Use
C46: This Reclamation Cost Estimating Model was prepared to serve as a guide for Government Agencies, mining companies, and others to estimate the cost of mine reclamation. It is recognized that one model can not cover the full range of possibilities encountered during reclamation. It is expected, however, that this model is sufficiently comprehensive and flexible to provide the user with a forecasting tool to meet most reclamation situations. This model is not intended to replace reclamation planning or to be used to determine the activities required to reclaim a site or to dictate how much should be spent on reclamation.
C48: DIAND and Brodie Consulting are not responsible for the completeness or accuracy of any reclamation estimate made using this model. The user agrees to check and take responsibility for all aspects of any cost estimate made using this model.
C50: For program limitations, please see "Limitations" above.
B52: L
B53: H | C53: Do NOT delete these
B54: SPEC

Sheet Tools
A1: These buttonsmay alter the contents of your worksheet.
C4: Please back up your workbook before clearing all the data
C9: Shows 2 windows; the current one and the Unit Cost Window
C12: Prints all non-zero components

Sheet Summary
B1: SUMMARY OF COSTS
A2: CAPITAL COSTS
A3: COMPONENT TYPE | B3: COMPONENT NAME | E3: TOTAL COST | G3: LAND LIABILITY | I3: WATER LIABILITY
A4: OPEN PIT | B4: ='Open Pit'!Pit1Name -> 0 | E4: =Pit1Total -> 73665.15162 | G4: 36294.15 | I4: 34870.85
A5: UNDERGROUND MINE | B5: =UG1Name -> 0 | E5: =UG1Total -> 2640.0001 | G5: 1267.2 | I5: 1372.8
A6: TAILINGS | B6: =Tailings1Name -> 0 | E6: =Tailings1Total -> 1312454.067 | G6: 656227 | I6: 656227
A7: ROCK PILE | B7: =RP1Name -> 0 | E7: =RP1Total -> 1423014.645 | G7: 1280713.5 | I7: 142301.5
A8: BUILDINGS AND EQUIPMENT | B8: =Bldg1Name -> 0 | E8: =Bldg1Total -> 2887840.659 | G8: 2578453.2 | I8: 286494.8
A9: CHEMICALS AND SOIL MANAGEMENT | E9: =Chem1Total -> 310274.8361 | G9: 155137.5 | I9: 155137.5
A10: WATER MANAGEMENT | E10: =Water1Total -> 136277.3632 | G10: =Water1LandTotal -> 0 | I10: =Water1WaterTotal -> 136277.3631
A11: POST-CLOSUREMONITORING AND MAINTENANCE | E11: =PC1Total -> 805000.0001 | G11: =PC1LandTotal -> 0 | I11: =PC1WaterTotal -> 805000.0001
B13: SUBTOTAL | E13: =SUM(E4:E12) -> 6951166.721 | G13: =SUM(G4:G12) -> 4708092.55 | I13: =SUM(I4:I12) -> 2217681.813
E14: PERCENTAGES | G14: 0.7692 | I14: =1-G14 -> 0.2308
A15: MOBILIZATION/DEMOBILIZATION | E15: =Mob1Total -> 2879988.119 | G15: =+$G$14*E15 -> 2215286.861 | I15: =+$I$14*E15 -> 664701.258
A17: PROJECT MANAGEMENT | B17: 0.05 | E17: =B17*$E$13 -> 347558.3361 | G17: =+$G$14*E17 -> 267341.8721 | I17: =+$I$14*E17 -> 80216.46397
A18: Bonding | B18: 0 | E18: =B18*$E$13 -> 0 | G18: =+$G$14*E18 -> 0 | I18: =+$I$14*E18 -> 0
A19: Taxes (GST on supplies) - est. | B19: allowance | E19: 0 | G19: =+$G$14*E19 -> 0 | I19: =+$I$14*E19 -> 0
A20: Insurance | B20: 0 | E20: =B20*$E$13 -> 0 | G20: =+$G$14*E20 -> 0 | I20: =+$I$14*E20 -> 0
A21: ENGINEERING | B21: 0.05 | E21: =B21*E13 -> 347558.3361 | G21: =+$G$14*E21 -> 267341.8721 | I21: =+$I$14*E21 -> 80216.46397
A23: CONTINGENCY | B23: 0.2 | E23: =B23*E13 -> 1390233.344 | G23: =+$G$14*E23 -> 1069367.488 | I23: =+$I$14*E23 -> 320865.8559
A25: Market Price Factor Adjustment | B25: 0 | E25: =B25*(E13-E11) -> 0 | G25: =+$G$14*E25 -> 0 | I25: =+$I$14*E25 -> 0
A26: GRAND TOTAL - CAPITAL COSTS | E26: =E13+E15+E16+E17+E18+E19+E20+E21+E23+E25 -> 11916504.86 | G26: =G13+G15+G16+G17+G18+G19+G20+G21+G23+G25 -> 8527430.644 | I26: =I13+I15+I16+I17+I18+I19+I20+I21+I23+I25 -> 3363681.855

Sheet Open Pit
A1: Open Pit Name: | H1: Pit # | I1: 1
A2: 1
A3: ACTIVITY/MATERIAL | B3: Units | C3: Quantity | D3: Cost Code | E3: Unit Cost | F3: Cost | G3: % Land | H3: Land Cost | I3: Water Cost
A4: OBJECTIVE: CONTROL ACCESS
A5: Fence | B5: m | D5: =NA() ->  | E5: =IF(ISNA(D5),0,INDEX(IF(UPPER(RIGHT(D5,1))=Low,UnitCostLow, IF(UPPER(RIGHT(D5,1))=High,UnitCostHigh,UnitCostSpecified)),MATCH(UPPER(LEFT(D5,LEN(D5)-1)),CostCode,0))) -> 0 | F5: =E5*C5 -> 0 | H5: =F5*G5 -> 0 | I5: =F5*(1-G5) -> 0
A6: Signs | B6: each | D6: =NA() ->  | E6: 0 | F6: 0 | H6: =F6*G6 -> 0 | I6: =F6*(1-G6) -> 0
A7: Berm at crest | B7: m3 | C7: 6600 | D7: sb1h | E7: 5.4496152 | F7: 35967.46032 | H7: 0 | I7: 35967.46032
A8: Block roads | B8: m3 | D8: =NA() ->  | E8: 0 | F8: 0 | H8: 0 | I8: 0
A9: Other | D9: =NA() ->  | F9: 0 | H9: 0 | I9: 0
A10: OBJECTIVE: STABILIZE SLOPES | D10: =NA() -> 
A11: Off-load crest, soil A | B11: m3 | C11: 6000 | D11: sb1h | E11: 5.4496152 | F11: 32697.6912 | H11: 0 | I11: 32697.6912
A12: Off-load crest, soil B | B12: m3 | D12: =NA() ->  | E12: 0 | F12: 0 | H12: 0 | I12: 0
A13: Doze/trimoverburden at crest | B13: m3 | D13: =NA() ->  | E13: 0 | F13: 0 | H13: 0 | I13: 0
A14: Drill & blast pit crest | B14: m3 | D14: =NA() ->  | E14: 0 | F14: 0 | H14: 0 | I14: 0
A15: buttress slope | B15: m3 | D15: =NA() ->  | E15: 0 | F15: 0 | H15: 0 | I15: 0
A16: Other | D16: =NA() ->  | E16: 0 | F16: 0 | H16: 0 | I16: 0
A17: OBJECTIVE: COVER/CONTOUR SLOPES | D17: =NA() -> 
A18: Place fill, soil A | B18: m3 | D18: =NA() ->  | E18: 0 | F18: 0 | H18: 0 | I18: 0
A19: Place fill, soil B | B19: m3 | D19: =NA() ->  | E19: 0 | F19: 0 | H19: 0 | I19: 0
A20: Rip rap | B20: m3 | D20: =NA() ->  | E20: 0 | F20: 0 | H20: 0 | I20: 0
A21: Vegetate slopes | B21: ha | D21: =NA() ->  | E21: 0 | F21: 0 | H21: 0 | I21: 0
A22: Vegetate pit floor | B22: ha | D22: =NA() ->  | E22: 0 | F22: 0 | H22: 0 | I22: 0
A23: Other | D23: =NA() ->  | E23: 0 | F23: 0 | H23: 0 | I23: 0
A24: OBJECTIVE: SPILLWAY | D24: =NA() -> 
A25: Excavate channel, soil A | B25: m3 | D25: =NA() ->  | E25: 0 | F25: 0 | H25: 0 | I25: 0
A26: Excavate channel, soil B | B26: m3 | D26: =NA() ->  | E26: 0 | F26: 0 | H26: 0 | I26: 0
A27: Concrete | B27: m3 | D27: =NA() ->  | E27: 0 | F27: 0 | H27: 0 | I27: 0
A28: Rip rap | B28: m3 | D28: =NA() ->  | E28: 0 | F28: 0 | H28: 0 | I28: 0
A29: Other | D29: =NA() ->  | E29: 0 | F29: 0 | H29: 0 | I29: 0
A30: OBJECTIVE: FLOOD PIT | D30: =NA() -> 
A31: remove stationary equipment (sump pump) | B31: each | D31: =NA() ->  | E31: 0 | F31: =E31*C31 -> 0 | H31: 0 | I31: 0
A32: remove power lines | B32: each | D32: =NA() ->  | E32: 0 | F32: 0 | H32: 0 | I32: 0
A33: Embankment/dam - Soil A | B33: m3 | D33: =NA() ->  | E33: 0 | F33: 0 | H33: 0 | I33: 0
A34: Embankment/dam - Soil B | B34: m3 | D34: =NA() ->  | E34: 0 | F34: 0 | H34: 0 | I34: 0
A35: remover pump & piping system | B35: each | C35: 1 | D35: =NA() ->  | E35: 5000 | F35: 5000 | H35: 0 | I35: 5000
A36: operate pumps to flood pit | B36: each | D36: =NA() ->  | E36: 0 | F36: 0 | H36: 0 | I36: 0
A37: LIme addition, _____ kg/m3 of water | B37: tonne | D37: =NA() ->  | E37: 0 | F37: 0 | H37: 0 | I37: 0
A38: Lime, purchase and shipping | B38: tonne | D38: =NA() ->  | E38: 0 | F38: 0 | H38: 0 | I38: 0
A39: Other | D39: =NA() ->  | E39: 0 | F39: 0 | H39: 0 | I39: 0
A40: RECLAIM QUARRIES | D40: =NA() -> 
A41: Contour slopes | B41: m3 | D41: =NA() ->  | E41: 0 | F41: =E41*C41 -> 0 | H41: 0 | I41: 0
A42: Berm at crest | B42: m3 | D42: =NA() ->  | E42: 0 | F42: =E42*C42 -> 0 | H42: 0 | I42: 0
A43: Place overburder | B43: m3 | D43: =NA() ->  | E43: 0 | F43: =E43*C43 -> 0 | H43: 0 | I43: 0
A44: Vegetate | B44: m3 | D44: =NA() ->  | E44: 0 | F44: =E44*C44 -> 0 | H44: 0 | I44: 0
A45: OTHER ITEMS | D45: =NA() -> 
D46: =NA() ->  | E46: 0 | F46: 0 | H46: 0 | I46: 0
D47: =NA() ->  | E47: 0 | F47: 0 | H47: 0 | I47: 0
E49: Subtotal | F49: =SUM(F5:F47)+0.0001 -> 73665.15162 | G49: =H49/F49 -> 0 | H49: =SUM(H5:H47) -> 0 | I49: =SUM(I5:I47) -> 73665.15152
G50: Pct Land | H50: Total Land | I50: Total Water

Sheet UG Mine
A1: Underground Mine Name | H1: UG Mine # | I1: 1
A2: 1
A3: ACTIVITY/MATERIAL | B3: Unit | C3: Qty | D3: Cost Code | E3: Unit Cost | F3: Cost | G3: % Land | H3: Land Cost | I3: Water Cost
A4: OBJECTIVE: CONTROL ACCESS
A5: Fence | B5: m | D5: =NA() ->  | E5: =IF(ISNA(D5),0,INDEX(IF(UPPER(RIGHT(D5,1))=Low,UnitCostLow, IF(UPPER(RIGHT(D5,1))=High,UnitCostHigh,UnitCostSpecified)),MATCH(UPPER(LEFT(D5,LEN(D5)-1)),CostCode,0))) -> 0 | F5: =E5*C5 -> 0 | H5: =F5*G5 -> 0 | I5: =F5*(1-G5) -> 0
A6: Signs | B6: each | D6: =NA() ->  | E6: 0 | F6: 0 | H6: =F6*G6 -> 0 | I6: =F6*(1-G6) -> 0
A7: Ditch, mat'l A | B7: m3 | D7: =NA() ->  | E7: 0 | F7: 0 | H7: 0 | I7: 0
A8: , mat'l B | B8: m3 | D8: =NA() ->  | E8: 0 | F8: 0 | H8: 0 | I8: 0
A9: Berm | B9: m3 | D9: =NA() ->  | E9: 0 | F9: 0 | H9: 0 | I9: 0
A10: concrete wall in 2 portals | B10: m3 | D10: =NA() ->  | F10: 0 | H10: =F10*G10 -> 0 | I10: =F10*(1-G10) -> 0
A11: backfill portal #1 | B11: m3 | D11: =NA() ->  | E11: 0 | F11: 0 | H11: 0 | I11: 0
A12: backfill portal #2 | B12: m3 | D12: =NA() ->  | E12: 0 | F12: =E12*C12 -> 0 | H12: 0 | I12: 0
A13: backfill raise #1 | B13: m3 | D13: sb1l | E13: 3.5956224 | F13: 0 | H13: 0 | I13: 0
A14: cap raise #2 | B14: m3 | D14: =NA() ->  | E14: 0 | F14: 0 | H14: 0 | I14: 0
A15: cap shaft #1 | B15: m3 | D15: =NA() ->  | E15: 0 | F15: 0 | H15: 0 | I15: 0
A16: cap shaft #2 | B16: m3 | D16: =NA() ->  | E16: 0 | F16: 0 | H16: 0 | I16: 0
A17: backfill audits | B17: m3 | D17: =NA() ->  | E17: =IF(ISNA(D17),0,INDEX(IF(UPPER(RIGHT(D17,1))=Low,UnitCostLow, IF(UPPER(RIGHT(D17,1))=High,UnitCostHigh,UnitCostSpecified)),MATCH(UPPER(LEFT(D17,LEN(D17)-1)),CostCode,0))) -> 0 | F17: =E17*C17 -> 0 | H17: =F17*G17 -> 0 | I17: =F17*(1-G17) -> 0
A18: backfill open stope | B18: m3 | D18: =NA() ->  | E18: 0 | F18: 0 | H18: 0 | I18: 0
A19: concrete cap over open stope | B19: m3 | D19: =NA() ->  | E19: 0 | F19: 0 | H19: 0 | I19: 0
A20: other | D20: =NA() ->  | E20: 0 | F20: 0 | H20: 0 | I20: 0
B21: m3 | D21: =NA() ->  | E21: 0 | F21: 0 | H21: 0 | I21: 0
A22: OBJECTIVE: FLOOD MINE | D22: =NA() -> 
A23: Bulkheads to control water flow | B23: each | D23: =NA() ->  | E23: 0 | F23: 0 | H23: 0 | I23: 0
A24: supply/install pump & piping system | B24: each | D24: =NA() ->  | E24: 0 | F24: 0 | H24: 0 | I24: 0
A25: operate pumps to flood workings | B25: m3 | D25: =NA() ->  | E25: 0 | F25: =E25*C25 -> 0 | H25: 0 | I25: 0
B26: m3 | D26: =NA() ->  | E26: 0 | F26: 0 | H26: 0 | I26: 0
A27: other | D27: =NA() ->  | E27: 0 | F27: 0 | H27: 0 | I27: 0
A28: OBJECTIVE: HAZARDOUS MATERIALS | D28: =NA() -> 
A29: remove hazardous materials, U/G labor | B29: mandays | C29: 4 | D29: =NA() ->  | E29: 660 | F29: 2640 | H29: 0 | I29: 2640
A30: off-site disposal costs on Chemicals sheet | D30: =NA() -> 
A31: remove/decontam. stationary & elect. equip | B31: mandays | D31: =NA() ->  | F31: 0 | H31: 0 | I31: 0
A32: remove/decontam. mobile equipment | B32: each | D32: =NA() ->  | E32: =IF(ISNA(D32),0,INDEX(IF(UPPER(RIGHT(D32,1))=Low,UnitCostLow, IF(UPPER(RIGHT(D32,1))=High,UnitCostHigh,UnitCostSpecified)),MATCH(UPPER(LEFT(D32,LEN(D32)-1)),CostCode,0))) -> 0 | F32: 0 | H32: 0 | I32: 0
A33: Remove misc. haz. mat & explosives | B33: kg | D33: =NA() ->  | E33: 0 | F33: 0 | H33: 0 | I33: 0
A34: Other | D34: =NA() ->  | E34: 0 | F34: 0 | H34: 0 | I34: 0
A35: SPECIALIZED ITEMS | D35: =NA() -> 
A36: install water quality monitoring pipes | B36: each | D36: =NA() ->  | E36: 0 | F36: 0 | H36: =F36*G36 -> 0 | I36: 0
A37: intall permanent pumping system | B37: each | D37: =NA() ->  | E37: 0 | F37: 0 | H37: =F37*G37 -> 0 | I37: 0
A38: other | D38: =NA() ->  | E38: =IF(ISNA(D38),0,INDEX(IF(UPPER(RIGHT(D38,1))=Low,UnitCostLow, IF(UPPER(RIGHT(D38,1))=High,UnitCostHigh,UnitCostSpecified)),MATCH(UPPER(LEFT(D38,LEN(D38)-1)),CostCode,0))) -> 0 | F38: 0 | H38: =F38*G38 -> 0 | I38: 0
E39: Subtotal | F39: =SUM(F5:F38)+0.0001 -> 2640.0001 | G39: =H39/F39 -> 0 | H39: =SUM(H5:H38) -> 0 | I39: =SUM(I5:I38) -> 2640
G40: Pct Land | H40: Total Land | I40: Total Water
A42: COMMENTS:

Sheet Tailings
A1: Tailings Impoundment Name: | H1: Pond # | I1: 1
A2: 1
A3: ACTIVITY/MATERIAL | B3: Units | C3: Quantity | D3: Cost Code | E3: Unit Cost | F3: Cost | G3: % Land | H3: Land Cost | I3: Water Cost
A4: OBJECTIVE: CONTROL ACCESS
A5: Fence | B5: m | D5: =NA() ->  | E5: =IF(ISNA(D5),0,INDEX(IF(UPPER(RIGHT(D5,1))=Low,UnitCostLow, IF(UPPER(RIGHT(D5,1))=High,UnitCostHigh,UnitCostSpecified)),MATCH(UPPER(LEFT(D5,LEN(D5)-1)),CostCode,0))) -> 0 | F5: =E5*C5 -> 0 | H5: =F5*G5 -> 0 | I5: =+F5*(1-G5) -> 0
A6: Signs | B6: each | D6: =NA() ->  | E6: 0 | F6: 0 | H6: =F6*G6 -> 0 | I6: =+F6*(1-G6) -> 0
A7: Ditch, mat'l A | B7: m3 | D7: =NA() ->  | E7: 0 | F7: 0 | H7: 0 | I7: 0
A8: , mat'l B | B8: m3 | D8: =NA() ->  | E8: 0 | F8: 0 | H8: 0 | I8: 0
A9: Berm | B9: m3 | D9: =NA() ->  | E9: 0 | F9: 0 | H9: 0 | I9: 0
A10: Block roads | B10: m3 | D10: =NA() ->  | E10: 0 | F10: 0 | H10: 0 | I10: 0
A11: Other | D11: =NA() ->  | E11: 0 | F11: =E11*C11 -> 0 | H11: 0 | I11: 0
A12: OBJECTIVE: STABILIZE EMBANKMENT | D12: =NA() -> 
A13: toe buttress, drainage layer | B13: m3 | D13: =NA() ->  | E13: 0 | F13: 0 | H13: 0 | I13: 0
A14: toe buttress, bulk fill | B14: m3 | D14: =NA() ->  | E14: 0 | F14: 0 | H14: 0 | I14: 0
A15: Rip rap | B15: m3 | D15: =NA() ->  | E15: 0 | F15: 0 | H15: 0 | I15: 0
A16: Vegetate | B16: ha | D16: =NA() ->  | E16: 0 | F16: 0 | H16: 0 | I16: 0
A17: Raise crest | B17: m3 | D17: =NA() ->  | E17: 0 | F17: 0 | H17: 0 | I17: 0
A18: Flatten slopes | B18: m3 | D18: =NA() ->  | E18: 0 | F18: 0 | H18: 0 | I18: 0
A19: Other | D19: =NA() ->  | E19: 0 | F19: 0 | H19: 0 | I19: 0
A20: OBJECTIVE: COVER TAILINGS | D20: =NA() -> 
A21: place coarse kimberlite | B21: m3 | C21: 188000 | D21: sb1h | E21: =IF(ISNA(D21),0,INDEX(IF(UPPER(RIGHT(D21,1))=Low,UnitCostLow, IF(UPPER(RIGHT(D21,1))=High,UnitCostHigh,UnitCostSpecified)),MATCH(UPPER(LEFT(D21,LEN(D21)-1)),CostCode,0))) -> 5.4496152 | F21: =E21*C21 -> 1024527.658 | H21: =F21*G21 -> 0 | I21: =+F21*(1-G21) -> 1024527.658
A22: place overburden | B22: m3 | D22: sb1h | E22: 5.4496152 | F22: 0 | H22: 0 | I22: 0
A23: rip rap | B23: m2 | C23: 58765 | D23: sbsh | E23: 4.5 | F23: 264442.5 | H23: 0 | I23: 264442.5
A24: Soil cover | B24: m2 | D24: =NA() ->  | E24: =IF(ISNA(D24),0,INDEX(IF(UPPER(RIGHT(D24,1))=Low,UnitCostLow, IF(UPPER(RIGHT(D24,1))=High,UnitCostHigh,UnitCostSpecified)),MATCH(UPPER(LEFT(D24,LEN(D24)-1)),CostCode,0))) -> 0 | F24: 0 | H24: 0 | I24: 0
A25: geofabric | B25: m2 | D25: =NA() ->  | E25: 4.5 | F25: =E25*C25 -> 0 | H25: 0 | I25: 0
A26: Vegetate | B26: ha | D26: =NA() ->  | E26: 0 | F26: 0 | H26: 0 | I26: 0
A27: cover shortfall - processing cost only | B27: m3 | D27: =NA() ->  | E27: 0 | F27: 0 | H27: 0 | I27: 0
A28: OBJECTIVE: BURY PAG ROCK | D28: =NA() -> 
A29: Relocate PAG rock | B29: m2 | D29: =NA() ->  | E29: 0 | F29: 0 | H29: 0 | I29: 0
A30: place cover over PAG rock | B30: m3 | D30: =NA() ->  | E30: 0 | F30: 0 | H30: 0 | I30: 0
A31: Raise crest | B31: m2 | D31: =NA() ->  | E31: 0 | F31: 0 | H31: 0 | I31: 0
A32: Other | B32: m3 | D32: =NA() ->  | E32: 0 | F32: 0 | H32: 0 | I32: 0
A33: OBJECTIVE: FLOOD TAILINGS | D33: =NA() -> 
A34: Ditch, mat'l A | B34: m3 | D34: =NA() ->  | E34: 0 | F34: 0 | H34: 0 | I34: 0
A35: , mat'l B | B35: m3 | D35: =NA() ->  | E35: 0 | F35: 0 | H35: 0 | I35: 0
A36: Doze Tailings to final contour | B36: m3 | D36: =NA() ->  | E36: 0 | F36: 0 | H36: 0 | I36: 0
A37: Raise crest of dam | B37: m3 | D37: =NA() ->  | E37: 0 | F37: 0 | H37: 0 | I37: 0
A38: Other | D38: =NA() ->  | E38: 0 | F38: =E38*C38 -> 0 | H38: 0 | I38: 0
A39: OBJECTIVE: TREAT SUPERNATANT | D39: =NA() -> 
A40: Pump water | B40: m3 | D40: =NA() ->  | E40: 0 | F40: 0 | H40: 0 | I40: 0
A41: Supply reagents | B41: tonne | D41: =NA() ->  | E41: 0 | F41: 0 | H41: 0 | I41: 0
A42: Operate treatment plant | B42: m3 | D42: =NA() ->  | E42: 0 | F42: 0 | H42: 0 | I42: 0
A43: Other | D43: =NA() ->  | E43: 0 | F43: 0 | H43: 0 | I43: 0
A44: OBJECTIVE: UPGRADE SPILLWAY | D44: =NA() -> 
A45: Excavate channel, rock | B45: m3 | D45: =NA() ->  | E45: 0 | F45: 0 | H45: 0 | I45: 0
A46: excavate channel, soil | B46: m3 | D46: =NA() ->  | E46: 0 | F46: 0 | H46: 0 | I46: 0
A47: Concrete | B47: m3 | D47: =NA() ->  | E47: 0 | F47: =E47*C47 -> 0 | H47: 0 | I47: 0
A48: Rip rap | B48: m3 | D48: =NA() ->  | E48: 0 | F48: 0 | H48: 0 | I48: 0
A49: Other | D49: =NA() ->  | E49: 0 | F49: 0 | H49: 0 | I49: 0
A50: OBJECTIVE: STABILIZE DECANT SYSTEM | D50: =NA() -> 
A51: excavate and replace | B51: m3 | D51: =NA() ->  | E51: 0 | F51: 0 | H51: 0 | I51: 0
A52: Plug/backfill with concrete or clay | B52: m3 | D52: =NA() ->  | E52: 0 | F52: 0 | H52: 0 | I52: 0
A53: Other | D53: =NA() ->  | E53: 0 | F53: 0 | H53: 0 | I53: =+F53*(1-G53) -> 0
A54: OBJECTIVE: REMOVE TAILINGS DISCHARGE | D54: =NA() -> 
A55: Cyclones | B55: m3 | D55: =NA() ->  | E55: 0 | F55: =E55*C55 -> 0 | H55: 0 | I55: 0
A56: Pipe | B56: m | C56: 1000 | D56: powrl | E56: 23.4839088 | F56: =E56*C56 -> 23483.9088 | H56: 0 | I56: 23483.9088
A57: Remove reclaim barge | B57: each | D57: =NA() ->  | E57: 0 | F57: =E57*C57 -> 0 | H57: 0 | I57: 0
A58: SPECIALIZED ITEMS | D58: =NA() -> 
A59: install permanent instrumentation, supply & technican | B59: each | D59: =NA() ->  | E59: 0 | F59: =E59*C59 -> 0 | H59: =F59*G59 -> 0 | I59: =+F59*(1-G59) -> 0
A60: install permanent instrumentation, drilling | B60: each | D60: =NA() ->  | E60: 0 | F60: =E60*C60 -> 0 | I60: 0
E61: Subtotal | F61: =SUM(F5:F60)+0.0001 -> 1312454.067 | G61: 0.5 | H61: =SUM(H5:H60) -> 0 | I61: =SUM(I5:I60) -> 1312454.066
G62: Pct Land | H62: Total Land | I62: Total Water

Sheet Rock Pile
A1: Rock Pile Name: | H1: Rock Pile #: | I1: 1
A2: 1
A3: ACTIVITY/MATERIAL | B3: Units | C3: Quantity | D3: Cost Code | E3: Unit Cost | F3: Cost | G3: % Land | H3: Land Cost | I3: Water Cost
A4: OBJECTIVE: STABILIZE SLOPES
A5: Dump 1, Flatten slopes with dozer | B5: m3 | C5: 70116 | D5: drl | E5: =IF(ISNA(D5),0,INDEX(IF(UPPER(RIGHT(D5,1))=Low,UnitCostLow, IF(UPPER(RIGHT(D5,1))=High,UnitCostHigh,UnitCostSpecified)),MATCH(UPPER(LEFT(D5,LEN(D5)-1)),CostCode,0))) -> 0.9550872 | F5: =E5*C5 -> 66966.89412 | H5: =F5*G5 -> 0 | I5: =+F5*(1-G5) -> 66966.89412
A6: Dump 2, Flatten slopes with dozer | B6: m3 | C6: 35055 | D6: drl | E6: =IF(ISNA(D6),0,INDEX(IF(UPPER(RIGHT(D6,1))=Low,UnitCostLow, IF(UPPER(RIGHT(D6,1))=High,UnitCostHigh,UnitCostSpecified)),MATCH(UPPER(LEFT(D6,LEN(D6)-1)),CostCode,0))) -> 0.9550872 | F6: 33480.5818 | H6: 0 | I6: =+F6*(1-G6) -> 33480.5818
A7: Low grade dump, Flatten slopes with dozer | B7: m3 | C7: 31365 | D7: drl | E7: =IF(ISNA(D7),0,INDEX(IF(UPPER(RIGHT(D7,1))=Low,UnitCostLow, IF(UPPER(RIGHT(D7,1))=High,UnitCostHigh,UnitCostSpecified)),MATCH(UPPER(LEFT(D7,LEN(D7)-1)),CostCode,0))) -> 0.9550872 | F7: 29956.31003 | H7: 0 | I7: 29956.31003
A8: Coarse Rejects, Flatten slopes with dozer | B8: m3 | C8: 19370 | D8: drl | E8: 0.9550872 | F8: 18500.03906 | H8: 0 | I8: 18500.03906
A9: Toe buttress, drain mat'l | B9: m3 | D9: =NA() ->  | E9: 0 | F9: 0 | H9: 0 | I9: 0
A10: , fill mat'l A | B10: m3 | D10: =NA() ->  | E10: 0 | F10: 0 | H10: 0 | I10: 0
A11: , fill mat'l B | B11: m3 | D11: =NA() ->  | E11: 0 | F11: 0 | H11: 0 | I11: 0
A12: Other | D12: =NA() ->  | E12: 0 | F12: =E12*C12 -> 0 | H12: 0 | I12: 0
A13: OBJECTIVE: COVER DUMP | D13: =NA() -> 
A14: Dump 1, place o/b | B14: m3 | C14: 35900 | D14: sbsh | E14: 7.16877216 | F14: 257358.9205 | H14: 0 | I14: 257358.9205
A15: Dump 2, place o/b | B15: m3 | C15: 29790 | D15: sbsh | E15: 7.16877216 | F15: 213557.7226 | H15: 0 | I15: 213557.7226
A16: Low grade Dump, place o/b | B16: m3 | C16: 7500 | D16: sbsh | E16: 7.16877216 | F16: 53765.7912 | H16: 0 | I16: 53765.7912
A17: Coarse rejects, place o/b | B17: m3 | C17: 20200 | D17: sbsh | E17: 7.16877216 | F17: 144809.1976 | H17: 0 | I17: 144809.1976
A18: pads | B18: m3 | C18: 69800 | D18: sbsh | E18: 7.16877216 | F18: 500380.2968 | H18: 0 | I18: 500380.2968
A19: VERY LOW PERMEABILITY COVER | D19: =NA() -> 
A20: supply geomembrame, HDPE, ES3, GCL | B20: m2 | D20: =NA() ->  | E20: =IF(ISNA(D20),0,INDEX(IF(UPPER(RIGHT(D20,1))=Low,UnitCostLow, IF(UPPER(RIGHT(D20,1))=High,UnitCostHigh,UnitCostSpecified)),MATCH(UPPER(LEFT(D20,LEN(D20)-1)),CostCode,0))) -> 0 | F20: =E20*C20 -> 0 | H20: =F20*G20 -> 0 | I20: =+F20*(1-G20) -> 0
A21: upper and lower bedding layers | B21: m3 | D21: =NA() ->  | E21: 0 | F21: 0 | H21: 0 | I21: 0
A22: install geomembrane, HDPE, ES3, GCL | B22: m2 | D22: =NA() ->  | E22: 0 | F22: 0 | H22: 0 | I22: 0
A23: erosion protection layer | B23: m3 | D23: =NA() ->  | E23: 0 | F23: 0 | H23: 0 | I23: 0
A24: vegetate | B24: ha | D24: =NA() ->  | E24: 0 | F24: 0 | H24: 0 | I24: 0
A25: install infiltration/seepage instrumentation | B25: allow | D25: =NA() ->  | E25: 0 | F25: 0 | H25: 0 | I25: 0
A26: OBJECTIVE: RELOCATE DUMPS | D26: =NA() -> 
A27: Load, haul, dump or doze | B27: m3 | D27: =NA() ->  | E27: 0 | F27: 0 | H27: 0 | I27: 0
A28: Add lime | B28: tonne | D28: =NA() ->  | E28: 0 | F28: 0 | H28: 0 | I28: 0
A29: Contour reclaimed area | B29: ha | D29: =NA() ->  | E29: 0 | F29: 0 | H29: 0 | I29: 0
A30: Other | D30: =NA() ->  | E30: 0 | F30: 0 | H30: 0 | I30: 0
A31: OBJECTIVE: DEVELOP WETLAND
A32: vegetate | B32: ha | C32: 37.7 | D32: vhsl | E32: =IF(ISNA(D32),0,INDEX(IF(UPPER(RIGHT(D32,1))=Low,UnitCostLow, IF(UPPER(RIGHT(D32,1))=High,UnitCostHigh,UnitCostSpecified)),MATCH(UPPER(LEFT(D32,LEN(D32)-1)),CostCode,0))) -> 2076.471936 | F32: =E32*C32 -> 78282.99199 | H32: =F32*G32 -> 0 | I32: =+F32*(1-G32) -> 78282.99199 | K32: =I32+I33 -> 104238.8912
A33: vegetate borrow areas | B33: ha | C33: 12.5 | D33: vhsl | E33: =IF(ISNA(D33),0,INDEX(IF(UPPER(RIGHT(D33,1))=Low,UnitCostLow, IF(UPPER(RIGHT(D33,1))=High,UnitCostHigh,UnitCostSpecified)),MATCH(UPPER(LEFT(D33,LEN(D33)-1)),CostCode,0))) -> 2076.471936 | F33: =E33*C33 -> 25955.8992 | H33: =F33*G33 -> 0 | I33: =+F33*(1-G33) -> 25955.8992
A34: SPECIALIZED ITEMS | D34: =NA() -> 
A35: install permanent instrumentation | D35: =NA() ->  | E35: 0 | F35: 0 | H35: 0 | I35: 0
A36: install permanent instrumentation, drilling | D36: =NA() ->  | F36: 0 | H36: 0 | I36: 0
A37: other | D37: =NA() ->  | E37: 0 | F37: 0 | H37: 0 | I37: 0
E38: Subtotal | F38: =SUM(F5:F37)+0.0001 -> 1423014.645 | G38: =+H38/F38 -> 0 | H38: =SUM(H5:H37) -> 0 | I38: =SUM(I5:I37) -> 1423014.645
G39: % Land | H39: Total Land | I39: Total Water

Sheet Bldgs & Equip
A1: Building / Equip Name: | H1: Bldg / Equip #: | I1: 1
A2: 1
A3: ACTIVITY/MATERIAL | B3: Units | C3: Quantity | D3: Cost Code | E3: Unit Cost | F3: Cost | G3: % Land | H3: Land Cost | I3: Water Cost
A4: OBJECTIVE: DISPOSE MOBILE EQUIPMENT
A5: Decontaminate and ship off-site | B5: each | D5: =NA() ->  | E5: =IF(ISNA(D5),0,INDEX(IF(UPPER(RIGHT(D5,1))=Low,UnitCostLow, IF(UPPER(RIGHT(D5,1))=High,UnitCostHigh,UnitCostSpecified)),MATCH(UPPER(LEFT(D5,LEN(D5)-1)),CostCode,0))) -> 0 | F5: =E5*C5 -> 0 | H5: =F5*G5 -> 0 | I5: =+F5*(1-G5) -> 0
A6: Decontaminate, dispose on-site | B6: each | D6: =NA() ->  | E6: =IF(ISNA(D6),0,INDEX(IF(UPPER(RIGHT(D6,1))=Low,UnitCostLow, IF(UPPER(RIGHT(D6,1))=High,UnitCostHigh,UnitCostSpecified)),MATCH(UPPER(LEFT(D6,LEN(D6)-1)),CostCode,0))) -> 0 | F6: 0 | H6: =F6*G6 -> 0 | I6: =+F6*(1-G6) -> 0
A7: Other | B7: each | D7: =NA() ->  | E7: =IF(ISNA(D7),0,INDEX(IF(UPPER(RIGHT(D7,1))=Low,UnitCostLow, IF(UPPER(RIGHT(D7,1))=High,UnitCostHigh,UnitCostSpecified)),MATCH(UPPER(LEFT(D7,LEN(D7)-1)),CostCode,0))) -> 0 | F7: 0 | H7: 0 | I7: 0
A8: OBJECTIVE: BUILDING DECONTAMINATION & HAZ. MATERIAL REMOVAL | D8: =NA() -> 
A9: Decontaminate, oil, fuel and glycol systems | B9: mandays | D9: =NA() ->  | E9: 660 | F9: 0 | H9: 0 | I9: 0
A10: Decontaminate, general | B10: mandays | D10: =NA() ->  | E10: 660 | F10: 0 | H10: 0 | I10: 0
A11: mechanical | B11: mandays | D11: =NA() ->  | E11: 660 | F11: 0 | H11: 0 | I11: 0
A12: Electrical | B12: mandays | D12: =NA() ->  | E12: 660 | F12: 0 | H12: 0 | I12: 0
A13: Decontaminate maintenance shop | B13: each | D13: =NA() ->  | E13: =IF(ISNA(D13),0,INDEX(IF(UPPER(RIGHT(D13,1))=Low,UnitCostLow, IF(UPPER(RIGHT(D13,1))=High,UnitCostHigh,UnitCostSpecified)),MATCH(UPPER(LEFT(D13,LEN(D13)-1)),CostCode,0))) -> 0 | F13: 0 | H13: 0 | I13: 0
A14: Decontaminate power plant | B14: each | C14: 1 | D14: =NA() ->  | E14: 20000 | F14: 20000 | H14: 0 | I14: 20000
A15: Decontaminate bulk fuel storage | B15: each | C15: 1 | D15: =NA() ->  | E15: 20000 | F15: 20000 | H15: 0 | I15: 20000
A16: Decontaminate ANFO plant | B16: each | C16: 1 | D16: =NA() ->  | E16: 20000 | F16: 20000 | H16: 0 | I16: 20000
A17: Deontaminate offices/warehouse/accom | B17: each | D17: =NA() ->  | E17: 0 | F17: 0 | H17: 0 | I17: 0
A18: Removal of asbestos siding on buildings | B18: each | D18: =NA() ->  | E18: 0 | F18: 0 | H18: 0 | I18: 0
A19: Removal of friable asbestos on equipment | B19: each | D19: =NA() ->  | E19: 0 | F19: 0 | H19: 0 | I19: 0
A20: Other | D20: =NA() ->  | E20: 0 | F20: 0 | H20: 0 | I20: 0
A21: OBJECTIVE: REMOVE BUILDINGS - ALL BUILDING AREAS SCALED TO ACCOUNT FOR HEIGHT | D21: =NA() -> 
A22: Building 1- Plant & Office | B22: m2 | C22: 35280 | D22: brs1h | E22: =IF(ISNA(D22),0,INDEX(IF(UPPER(RIGHT(D22,1))=Low,UnitCostLow, IF(UPPER(RIGHT(D22,1))=High,UnitCostHigh,UnitCostSpecified)),MATCH(UPPER(LEFT(D22,LEN(D22)-1)),CostCode,0))) -> 59.3277696 | F22: 2093083.711 | H22: 0 | I22: 2093083.711
A23: Building 2 -shop | B23: m2 | C23: 6000 | D23: brs1h | E23: 59.3277696 | F23: 355966.6176 | H23: 0 | I23: 355966.6176
A24: Building 3 -explosives plant | B24: m2 | C24: 750 | D24: brs1h | E24: 59.3277696 | F24: 44495.8272 | H24: 0 | I24: 44495.8272
A25: Building 4 -camp | B25: m2 | C25: 3324 | D25: brw1h | E25: 37.079856 | F25: 123253.4413 | H25: 0 | I25: 123253.4413
A26: Building 5 -misc. allowance | B26: m2 | C26: 1500 | D26: brs1h | E26: 59.3277696 | F26: 88991.6544 | H26: 0 | I26: 88991.6544
A27: Building 6 -U/G Heating Plant | B27: m2 | D27: =NA() ->  | E27: 0 | F27: 0 | H27: 0 | I27: 0
A28: Building 7 - Emulsion Plant | B28: m2 | D28: =NA() ->  | E28: 0 | F28: 0 | H28: 0 | I28: 0
A29: Building 8 -AN Storage Facility | B29: m2 | D29: =NA() ->  | E29: =IF(ISNA(D29),0,INDEX(IF(UPPER(RIGHT(D29,1))=Low,UnitCostLow, IF(UPPER(RIGHT(D29,1))=High,UnitCostHigh,UnitCostSpecified)),MATCH(UPPER(LEFT(D29,LEN(D29)-1)),CostCode,0))) -> 0 | F29: =E29*C29 -> 0 | H29: =F29*G29 -> 0 | I29: =+F29*(1-G29) -> 0
A30: Building 9 -Warehouse, Shops and Other | B30: m2 | D30: =NA() ->  | E30: 0 | F30: 0 | H30: 0 | I30: 0
A31: Building 10 -Storage Facility at Laydown/Airstrip | B31: m2 | D31: =NA() ->  | E31: 0 | F31: 0 | H31: 0 | I31: 0
A32: Building 15 -Fuel tanks | B32: m2 | D32: =NA() ->  | E32: 0 | F32: 0 | H32: 0 | I32: 0
A33: Building 16 -Fuel Tanks | B33: m2 | D33: =NA() ->  | E33: 0 | F33: 0 | H33: 0 | I33: 0
A34: Building 23 -Freshwater intake | B34: m2 | D34: =NA() ->  | E34: 0 | F34: 0 | H34: 0 | I34: 0
A35: Building 26 Reclaim pumps | B35: m2 | D35: =NA() ->  | E35: 0 | F35: 0 | H35: 0 | I35: 0
A36: Building 27outfall &diffuser | B36: m2 | D36: =NA() ->  | E36: 0 | F36: 0 | H36: 0 | I36: 0
A37: Airstrip lighting, navigation, electrician | B37: mandays | D37: =NA() ->  | E37: 660 | F37: 0 | H37: 0 | I37: 0
A38: Airstrip lighting, navigation, mechanical | B38: mandays | D38: =NA() ->  | E38: 660 | F38: 0 | H38: 0 | I38: 0
A39: consolidate & dump boneyard debris | B39: m3 | C39: 1 | D39: =NA() ->  | E39: 5400 | F39: 5400 | H39: 0 | I39: 5400
A40: other | B40: m2 | D40: =NA() ->  | E40: 0 | F40: 0 | H40: 0 | I40: 0
A41: OBJECTIVE: BREAK BASEMENT SLABS | D41: =NA() -> 
A42: Building 1- Accom. Complex | B42: m2 | D42: =NA() ->  | E42: =IF(ISNA(D42),0,INDEX(IF(UPPER(RIGHT(D42,1))=Low,UnitCostLow, IF(UPPER(RIGHT(D42,1))=High,UnitCostHigh,UnitCostSpecified)),MATCH(UPPER(LEFT(D42,LEN(D42)-1)),CostCode,0))) -> 0 | F42: 0 | H42: 0 | I42: =+F42*(1-G42) -> 0
A43: Building 2 -Process Facilities | B43: m2 | D43: =NA() ->  | E43: 0 | F43: 0 | H43: 0 | I43: 0
A44: Building 3 -Offices, Repair, Lab, Warehouse | B44: m2 | D44: =NA() ->  | E44: 0 | F44: 0 | H44: 0 | I44: 0
A45: Building 4 -Storage Facilites | B45: m2 | D45: =NA() ->  | E45: 0 | F45: 0 | H45: 0 | I45: 0
A46: Building 5 -Water and Wastewater Treatment Facilities | B46: m2 | D46: =NA() ->  | E46: 0 | F46: 0 | H46: 0 | I46: 0
A47: Building 6 -U/G Heating Plant | B47: m2 | D47: =NA() ->  | E47: 0 | F47: 0 | H47: 0 | I47: 0
A48: Building 7 - Emulsion Plant | B48: m2 | D48: =NA() ->  | E48: 0 | F48: =E48*C48 -> 0 | H48: =F48*G48 -> 0 | I48: =+F48*(1-G48) -> 0
A49: Building 8 -Warehouse, Shops and Other | B49: m2 | D49: =NA() ->  | E49: 0 | F49: =E49*C49 -> 0 | H49: =F49*G49 -> 0 | I49: =+F49*(1-G49) -> 0
B50: m2 | D50: =NA() ->  | E50: 0 | F50: 0 | H50: 0
B51: m2 | D51: =NA() ->  | E51: 0 | F51: 0 | H51: 0 | I51: 0
A52: Other | D52: =NA() ->  | E52: 0 | F52: 0 | H52: 0 | I52: 0
A53: OBJECTIVE: LANDFILL FOR DEMOLITION WASTE | D53: =NA() -> 
A54: Place soil cover | B54: m3 | C54: 2340 | D54: drh | E54: =IF(ISNA(D54),0,INDEX(IF(UPPER(RIGHT(D54,1))=Low,UnitCostLow, IF(UPPER(RIGHT(D54,1))=High,UnitCostHigh,UnitCostSpecified)),MATCH(UPPER(LEFT(D54,LEN(D54)-1)),CostCode,0))) -> 2.1910824 | F54: 5127.132816 | H54: 0 | I54: 5127.132816
A55: Vegetate | B55: ha | D55: =NA() ->  | E55: =IF(ISNA(D55),0,INDEX(IF(UPPER(RIGHT(D55,1))=Low,UnitCostLow, IF(UPPER(RIGHT(D55,1))=High,UnitCostHigh,UnitCostSpecified)),MATCH(UPPER(LEFT(D55,LEN(D55)-1)),CostCode,0))) -> 0 | F55: 0 | H55: 0 | I55: 0
A56: Landfill disposal fee | B56: tonne | D56: =NA() ->  | E56: =IF(ISNA(D56),0,INDEX(IF(UPPER(RIGHT(D56,1))=Low,UnitCostLow, IF(UPPER(RIGHT(D56,1))=High,UnitCostHigh,UnitCostSpecified)),MATCH(UPPER(LEFT(D56,LEN(D56)-1)),CostCode,0))) -> 0 | F56: 0 | H56: 0 | I56: 0
A57: OBJECTIVE: GRADE AND CONTOUR | D57: =NA() -> 
A58: Building 1- Accom. Complex | B58: ha | D58: =NA() ->  | E58: =IF(ISNA(D58),0,INDEX(IF(UPPER(RIGHT(D58,1))=Low,UnitCostLow, IF(UPPER(RIGHT(D58,1))=High,UnitCostHigh,UnitCostSpecified)),MATCH(UPPER(LEFT(D58,LEN(D58)-1)),CostCode,0))) -> 0 | F58: 0 | H58: 0 | I58: 0
A59: Building 2 -Process Facilities | B59: ha | D59: =NA() ->  | E59: 0 | F59: 0 | H59: 0 | I59: 0
A60: Building 3 -Offices, Repair, Lab, Warehouse | B60: ha | D60: =NA() ->  | E60: 0 | F60: 0 | H60: 0 | I60: 0
A61: Building 4 -Storage Facilites | B61: ha | D61: =NA() ->  | E61: 0 | F61: 0 | H61: 0 | I61: 0
A62: Building 5 -Water and Wastewater Treatment Facilities | B62: ha | D62: =NA() ->  | E62: 0 | F62: 0 | H62: 0 | I62: 0
A63: Building 6 -U/G Heating Plant | B63: ha | D63: =NA() ->  | E63: 0 | F63: 0 | H63: 0 | I63: 0
A64: Building 7 - Emulsion Plant | B64: ha | D64: =NA() ->  | E64: 0 | F64: 0 | H64: 0 | I64: 0
A65: Building 8 -Warehouse, Shops and Other | B65: ha | D65: =NA() ->  | E65: 0 | F65: 0 | H65: 0 | I65: 0
A66: place soil cover | B66: m3 | C66: 1720 | D66: sb1h | E66: 5.4496152 | F66: 9373.338144 | H66: 0 | I66: 9373.338144
A67: Vegetate | B67: ha | C67: 5 | D67: vhsl | E67: 2076.471936 | F67: 10382.35968 | H67: 0 | I67: 10382.35968
A68: other | B68: m3 | D68: =NA() ->  | E68: 0 | F68: 0 | H68: 0 | I68: 0
A69: OBJECTIVE: LINED SUMPS | D69: =NA() -> 
A70: puncture liner and place soil cover | B70: m3 | D70: =NA() ->  | E70: =IF(ISNA(D70),0,INDEX(IF(UPPER(RIGHT(D70,1))=Low,UnitCostLow, IF(UPPER(RIGHT(D70,1))=High,UnitCostHigh,UnitCostSpecified)),MATCH(UPPER(LEFT(D70,LEN(D70)-1)),CostCode,0))) -> 0 | F70: =E70*C70 -> 0 | H70: =F70*G70 -> 0 | I70: =+F70*(1-G70) -> 0
A71: OBJECTIVE: RECLAIM ROADS | D71: =NA() -> 
A72: Remove culverts | B72: each | D72: =NA() ->  | E72: =IF(ISNA(D72),0,INDEX(IF(UPPER(RIGHT(D72,1))=Low,UnitCostLow, IF(UPPER(RIGHT(D72,1))=High,UnitCostHigh,UnitCostSpecified)),MATCH(UPPER(LEFT(D72,LEN(D72)-1)),CostCode,0))) -> 0 | F72: =E72*C72 -> 0 | H72: 0 | I72: 0
A73: Remove bridges | B73: each | D73: =NA() ->  | E73: 0 | F73: 0 | H73: 0 | I73: 0
A74: Scarify and install water breaks | B74: ha | C74: 12.2 | D74: scfyl | E74: 3960.8028 | F74: 48321.79416 | H74: 0 | I74: 48321.79416
A75: scarify airstriip | B75: ha | C75: 3 | D75: scfyl | E75: 3960.8028 | F75: 11882.4084 | H75: 0 | I75: 11882.4084
A76: scarify laydown areas | B76: ha | D76: =NA() ->  | E76: 0 | F76: 0 | H76: 0 | I76: 0
A77: Vegetate | B77: ha | C77: 15.2 | D77: vhsl | E77: 2076.471936 | F77: 31562.37343 | H77: =F77*G77 -> 0 | I77: 31562.37343
A78: other | D78: =NA() ->  | E78: 0 | F78: 0 | H78: =F78*G78 -> 0 | I78: 0
A79: SPECIALIZED ITEMS | D79: =NA() -> 
A80: Dispose of misc. debris and laydown area refuse | B80: m3 | D80: =NA() ->  | E80: =IF(ISNA(D80),0,INDEX(IF(UPPER(RIGHT(D80,1))=Low,UnitCostLow, IF(UPPER(RIGHT(D80,1))=High,UnitCostHigh,UnitCostSpecified)),MATCH(UPPER(LEFT(D80,LEN(D80)-1)),CostCode,0))) -> 0 | F80: =E80*C80 -> 0 | H80: =F80*G80 -> 0 | I80: 0
E81: Subtotal | F81: =SUM(F5:F80)+0.0001 -> 2887840.659 | G81: =+H81/F81 -> 0 | H81: =SUM(H5:H80) -> 0 | I81: =SUM(I5:I80) -> 2887840.659
G82: Pct Land | H82: Total Land | I82: Total Water

Sheet Chemicals
A1: 1 | B1: Chemicals and Soil Contamination:
B3: ACTIVITY/MATERIAL | C3: Units | D3: Quantity | E3: Cost Code | F3: Unit Cost | G3: Cost | H3: % Land | I3: Land Cost | J3: Water Cost
A4: . | B4: Note: The procedures, equipment and packaging for clean up and removal of chemicals or contaminated soils are highly dependent on the nature of the chemicals and their existing state of containment. Government guidelines should be consulted on an individual chemical basis. Any estimate made here should be considered very rough unless specific evaluations have been conducted.
B5: HAZARDOUS MATERIALS AUDIT
B6: Phase 1 audit | C6: each | D6: 1 | E6: =NA() ->  | F6: 50000 | G6: =F6*D6 -> 50000 | H6: 1 | I6: =G6*H6 -> 50000 | J6: =+G6*(1-H6) -> 0
B7: Phase 2 audit | C7: each | E7: =NA() ->  | F7: 25000 | G7: =F7*D7 -> 0 | H7: 1 | I7: =G7*H7 -> 0 | J7: =+G7*(1-H7) -> 0
B8: HAZARDOUS MATERIALS TO BE CONSOLIDATED FOR REMOVAL
B9: Waste oils | C9: litre | D9: 20000 | E9: orl | F9: =IF(ISNA(E9),0,INDEX(IF(UPPER(RIGHT(E9,1))=Low,UnitCostLow, IF(UPPER(RIGHT(E9,1))=High,UnitCostHigh,UnitCostSpecified)),MATCH(UPPER(LEFT(E9,LEN(E9)-1)),CostCode,0))) -> 0.3932712 | G9: =F9*D9 -> 7865.424 | I9: =G9*H9 -> 0 | J9: =+G9*(1-H9) -> 7865.424
B10: Fuel - Type 1, eg diesel dregs | C10: litre | E10: =NA() ->  | F10: 0 | G10: 0 | I10: 0 | J10: 0
B11: Fuel - Type 1, eg gasoline dregs | C11: litre | E11: =NA() ->  | F11: 0 | G11: 0 | I11: 0 | J11: 0
B12: waste batteries | C12: kg | E12: =NA() ->  | F12: 0 | G12: 0 | I12: 0 | J12: 0
B13: assay & environmental lab reagents | C13: pallet | E13: =NA() ->  | F13: 0 | G13: 0 | I13: 0 | J13: 0
B14: machine shop, paints, solvents etc | C14: litre | E14: =NA() ->  | F14: 0.9 | G14: 0 | I14: 0 | J14: 0
B15: contaminated soils - hydrocarbon | C15: m3 | E15: =NA() ->  | F15: =IF(ISNA(E15),0,INDEX(IF(UPPER(RIGHT(E15,1))=Low,UnitCostLow, IF(UPPER(RIGHT(E15,1))=High,UnitCostHigh,UnitCostSpecified)),MATCH(UPPER(LEFT(E15,LEN(E15)-1)),CostCode,0))) -> 0 | G15: =F15*D15 -> 0 | I15: =G15*H15 -> 0 | J15: =+G15*(1-H15) -> 0
B16: metal contam. soil at conc. load-out | C16: m3 | E16: =NA() ->  | F16: 0 | G16: =F16*D16 -> 0 | I16: =G16*H16 -> 0 | J16: =+G16*(1-H16) -> 0
B17: glycol | C17: litre | D17: 20000 | E17: =NA() ->  | F17: 1.15 | G17: =F17*D17 -> 23000 | I17: =G17*H17 -> 0 | J17: =+G17*(1-H17) -> 23000
B18: HAZARDOUS MATERIALS | E18: =NA() -> 
B19: Transportation to disposal facility | C19: allow | D19: 1 | E19: =NA() ->  | F19: 10000 | G19: =F19*D19 -> 10000 | I19: =G19*H19 -> 0 | J19: =+G19*(1-H19) -> 10000
B20: Disposal fees | C20: allow | E20: =NA() ->  | F20: =IF(ISNA(E20),0,INDEX(IF(UPPER(RIGHT(E20,1))=Low,UnitCostLow, IF(UPPER(RIGHT(E20,1))=High,UnitCostHigh,UnitCostSpecified)),MATCH(UPPER(LEFT(E20,LEN(E20)-1)),CostCode,0))) -> 0 | G20: =F20*D20 -> 0 | I20: =G20*H20 -> 0 | J20: =+G20*(1-H20) -> 0
B21: other | E21: =NA() ->  | F21: =IF(ISNA(E21),0,INDEX(IF(UPPER(RIGHT(E21,1))=Low,UnitCostLow, IF(UPPER(RIGHT(E21,1))=High,UnitCostHigh,UnitCostSpecified)),MATCH(UPPER(LEFT(E21,LEN(E21)-1)),CostCode,0))) -> 0 | G21: =F21*D21 -> 0 | I21: =G21*H21 -> 0 | J21: =+G21*(1-H21) -> 0
B22: CONTAMINATED SOILS | E22: =NA() -> 
B23: Contam. soil investigation - technical | C23: each | E23: =NA() ->  | F23: =IF(ISNA(E23),0,INDEX(IF(UPPER(RIGHT(E23,1))=Low,UnitCostLow, IF(UPPER(RIGHT(E23,1))=High,UnitCostHigh,UnitCostSpecified)),MATCH(UPPER(LEFT(E23,LEN(E23)-1)),CostCode,0))) -> 0 | G23: =F23*D23 -> 0 | I23: =G23*H23 -> 0 | J23: =+G23*(1-H23) -> 0
B24: Contam. soil investigation - drilling & sampling | C24: each | E24: =NA() ->  | F24: =IF(ISNA(E24),0,INDEX(IF(UPPER(RIGHT(E24,1))=Low,UnitCostLow, IF(UPPER(RIGHT(E24,1))=High,UnitCostHigh,UnitCostSpecified)),MATCH(UPPER(LEFT(E24,LEN(E24)-1)),CostCode,0))) -> 0 | G24: 0 | I24: 0 | J24: 0
B25: CONTAMINATED SOIL REMOVAL | C25: m3 | E25: =NA() ->  | G25: 0 | I25: 0 | J25: 0
B26: contaminated soils - hydrocarbon | C26: m3 | D26: 3500 | E26: csrl | F26: =IF(ISNA(E26),0,INDEX(IF(UPPER(RIGHT(E26,1))=Low,UnitCostLow, IF(UPPER(RIGHT(E26,1))=High,UnitCostHigh,UnitCostSpecified)),MATCH(UPPER(LEFT(E26,LEN(E26)-1)),CostCode,0))) -> 43.259832 | G26: 151409.412 | I26: 0 | J26: 151409.412
A27: . | B27: metal contam. soil at conc. load-out | C27: m3 | E27: =NA() ->  | F27: 0 | G27: 0 | I27: 0 | J27: 0
A28: . | B28: Load, haul, dump or doze | C28: m3 | E28: =NA() ->  | F28: 0 | G28: 0 | I28: 0 | J28: 0
A29: . | B29: Reagents/stabilizing agent | C29: m2 | E29: =NA() ->  | F29: 0 | G29: =F29*D29 -> 0 | I29: =G29*H29 -> 0 | J29: =+G29*(1-H29) -> 0
B30: Contour reclaimed area | C30: m3 | E30: =NA() ->  | F30: 0 | G30: 0 | I30: =G30*H30 -> 0 | J30: =+G30*(1-H30) -> 0
A31: . | B31: Type 2, heavy fuel and oil | C31: m3 | D31: 600 | E31: =NA() ->  | F31: 155 | G31: 93000 | I31: 0 | J31: 93000
A32: . | B32: CONTAMINATED SOIL VERY LOW PERMEABILITY COVER | E32: =NA() -> 
A33: . | B33: supply geomembrame, HDPE, ES3, GCL | C33: m2 | E33: =NA() ->  | F33: =IF(ISNA(E33),0,INDEX(IF(UPPER(RIGHT(E33,1))=Low,UnitCostLow, IF(UPPER(RIGHT(E33,1))=High,UnitCostHigh,UnitCostSpecified)),MATCH(UPPER(LEFT(E33,LEN(E33)-1)),CostCode,0))) -> 0 | G33: 0 | I33: 0 | J33: 0
A34: . | B34: upper and lower bedding layers | C34: m3 | E34: =NA() ->  | F34: 0 | G34: 0 | I34: 0 | J34: 0
A35: . | B35: install geomembrane, HDPE, ES3, GCL | C35: m2 | E35: =NA() ->  | F35: 0 | G35: 0 | I35: 0 | J35: 0
A36: . | B36: erosion protection layer | C36: m3 | E36: =NA() ->  | F36: 0 | G36: 0 | I36: 0 | J36: 0
B37: vegetate | C37: m2 | E37: =NA() ->  | F37: 0 | G37: 0 | I37: 0 | J37: 0
A38: . | B38: install infiltration/seepage instrumentation | C38: allow | E38: =NA() ->  | F38: 0 | G38: =F38*D38 -> 0 | I38: =G38*H38 -> 0 | J38: =+G38*(1-H38) -> 0
A39: . | B39: other | E39: =NA() ->  | F39: 0 | G39: =F39*D39 -> 0 | I39: =G39*H39 -> 0 | J39: =+G39*(1-H39) -> 0
A40: . | B40: OTHER | E40: =NA() -> 
A41: . | B41: drilling | C41: each | D41: 1 | E41: =NA() ->  | F41: 25000 | G41: =F41*D41 -> 25000 | I41: =G41*H41 -> 0 | J41: =+G41*(1-H41) -> 25000
E42: Subtotal | G42: =SUM(G9:G41)+0.0001 -> 310274.8361 | H42: =+I42/G42 -> 0.1611474544 | I42: =SUM(I5:I41) -> 50000 | J42: =Chem1Total-Chem1LandTotal -> 260274.8361
H43: Pct Land | I43: Total Land | J43: Total Water

Sheet Water
A1: 1 | B1: Water Management :
B3: ACTIVITY/MATERIAL | C3: Units | D3: Quantity | E3: Cost Code | F3: Unit Cost | G3: Cost | H3: % Land | I3: Land Cost | J3: Water Cost
A4: A | B4: OBJECTIVE: WATER SUPPLY EMBANKMENT
B5: Toe buttress, drain mat'l | C5: m3 | E5: =NA() ->  | F5: =IF(ISNA(E5),0,INDEX(IF(UPPER(RIGHT(E5,1))=Low,UnitCostLow, IF(UPPER(RIGHT(E5,1))=High,UnitCostHigh,UnitCostSpecified)),MATCH(UPPER(LEFT(E5,LEN(E5)-1)),CostCode,0))) -> 0 | G5: =F5*D5 -> 0 | I5: =G5*H5 -> 0 | J5: =+G5*(1-H5) -> 0
B6: , fill mat'l A | C6: m3 | E6: =NA() ->  | F6: =IF(ISNA(E6),0,INDEX(IF(UPPER(RIGHT(E6,1))=Low,UnitCostLow, IF(UPPER(RIGHT(E6,1))=High,UnitCostHigh,UnitCostSpecified)),MATCH(UPPER(LEFT(E6,LEN(E6)-1)),CostCode,0))) -> 0 | G6: 0 | I6: =G6*H6 -> 0 | J6: =+G6*(1-H6) -> 0
B7: , fill mat'l B | C7: m3 | E7: =NA() ->  | F7: =IF(ISNA(E7),0,INDEX(IF(UPPER(RIGHT(E7,1))=Low,UnitCostLow, IF(UPPER(RIGHT(E7,1))=High,UnitCostHigh,UnitCostSpecified)),MATCH(UPPER(LEFT(E7,LEN(E7)-1)),CostCode,0))) -> 0 | G7: 0 | I7: 0 | J7: 0
B8: Rip rap | C8: m3 | E8: =NA() ->  | F8: 0 | G8: 0 | I8: 0 | J8: 0
B9: Vegetate | C9: ha | E9: =NA() ->  | F9: 0 | G9: 0 | I9: 0 | J9: 0
B10: Breach dam | C10: m3 | E10: =NA() ->  | F10: 0 | G10: 0 | I10: 0 | J10: 0
B11: Other | E11: =NA() ->  | F11: 0 | G11: 0 | I11: 0 | J11: 0
A12: B | B12: OBJECTIVE: UPGRADE SPILLWAY | E12: =NA() -> 
B13: Excavate channel, mat'l A | C13: m3 | E13: =NA() ->  | F13: 0 | G13: 0 | I13: 0 | J13: 0
B14: , mat'l B | C14: m3 | E14: =NA() ->  | F14: 0 | G14: 0 | I14: 0 | J14: 0
B15: Concrete | C15: m3 | E15: =NA() ->  | F15: 0 | G15: 0 | I15: 0 | J15: 0
B16: Rip rap | C16: m3 | E16: =NA() ->  | F16: 0 | G16: 0 | I16: 0 | J16: 0
B17: Other | E17: =NA() ->  | F17: 0 | G17: 0 | I17: 0 | J17: 0
B18: OBJECTIVE: BREACH EMBANKMENT
B19: remove fill in west dam | C19: m3 | D19: 10237 | E19: dsh | F19: =IF(ISNA(E19),0,INDEX(IF(UPPER(RIGHT(E19,1))=Low,UnitCostLow, IF(UPPER(RIGHT(E19,1))=High,UnitCostHigh,UnitCostSpecified)),MATCH(UPPER(LEFT(E19,LEN(E19)-1)),CostCode,0))) -> 3.49449552 | G19: =F19*D19 -> 35773.15064 | I19: =G19*H19 -> 0 | J19: =+G19*(1-H19) -> 35773.15064
B20: contour water intake area | C20: m3 | E20: =NA() ->  | F20: =IF(ISNA(E20),0,INDEX(IF(UPPER(RIGHT(E20,1))=Low,UnitCostLow, IF(UPPER(RIGHT(E20,1))=High,UnitCostHigh,UnitCostSpecified)),MATCH(UPPER(LEFT(E20,LEN(E20)-1)),CostCode,0))) -> 0 | G20: =F20*D20 -> 0 | I20: =G20*H20 -> 0 | J20: =+G20*(1-H20) -> 0
A21: E | B21: OBJECTIVE: STABILIZE SEDIMENT PONDS | E21: =NA() -> 
B22: place soil cover on ponds a,b,c | C22: m3 | D22: 16450 | E22: sb1l | F22: 3.5956224 | G22: 59147.98848 | I22: 0 | J22: 59147.98848
B23: place soil cover long lake sediment | C23: m3 | D23: 10000 | E23: sb1l | F23: =IF(ISNA(E23),0,INDEX(IF(UPPER(RIGHT(E23,1))=Low,UnitCostLow, IF(UPPER(RIGHT(E23,1))=High,UnitCostHigh,UnitCostSpecified)),MATCH(UPPER(LEFT(E23,LEN(E23)-1)),CostCode,0))) -> 3.5956224 | G23: =F23*D23 -> 35956.224 | I23: =G23*H23 -> 0 | J23: =+G23*(1-H23) -> 35956.224
B24: doze & spread excavated material | C24: m3 | E24: =NA() ->  | F24: 0 | G24: 0 | I24: 0 | J24: 0
B25: Vegetate, spread material | C25: ha | E25: =NA() ->  | F25: 0 | G25: 0 | I25: 0 | J25: 0
B26: Rip rap in channel base | C26: each | E26: =NA() ->  | G26: 0 | I26: 0 | J26: 0
B27: allowance for C1 diversion & Pond A drainage | C27: allow | D27: 1 | F27: 5400 | G27: 5400 | I27: 0 | J27: 5400
A28: F | B28: OBJECTIVE: BREACH DITCHES | E28: =NA() -> 
B29: Excavate breaches | C29: m3 | E29: =NA() ->  | F29: =IF(ISNA(E29),0,INDEX(IF(UPPER(RIGHT(E29,1))=Low,UnitCostLow, IF(UPPER(RIGHT(E29,1))=High,UnitCostHigh,UnitCostSpecified)),MATCH(UPPER(LEFT(E29,LEN(E29)-1)),CostCode,0))) -> 0 | G29: =F29*D29 -> 0 | I29: =G29*H29 -> 0 | J29: =+G29*(1-H29) -> 0
B30: backfill/recontour | C30: m3 | E30: =NA() ->  | F30: =IF(ISNA(E30),0,INDEX(IF(UPPER(RIGHT(E30,1))=Low,UnitCostLow, IF(UPPER(RIGHT(E30,1))=High,UnitCostHigh,UnitCostSpecified)),MATCH(UPPER(LEFT(E30,LEN(E30)-1)),CostCode,0))) -> 0 | G30: =F30*D30 -> 0 | I30: =G30*H30 -> 0 | J30: =+G30*(1-H30) -> 0
B31: install flow dissipation | C31: m3 | E31: =NA() ->  | F31: =IF(ISNA(E31),0,INDEX(IF(UPPER(RIGHT(E31,1))=Low,UnitCostLow, IF(UPPER(RIGHT(E31,1))=High,UnitCostHigh,UnitCostSpecified)),MATCH(UPPER(LEFT(E31,LEN(E31)-1)),CostCode,0))) -> 0 | G31: =F31*D31 -> 0 | I31: =G31*H31 -> 0 | J31: =+G31*(1-H31) -> 0
B32: vegetate remainder of ditch | C32: m2 | E32: =NA() ->  | F32: =IF(ISNA(E32),0,INDEX(IF(UPPER(RIGHT(E32,1))=Low,UnitCostLow, IF(UPPER(RIGHT(E32,1))=High,UnitCostHigh,UnitCostSpecified)),MATCH(UPPER(LEFT(E32,LEN(E32)-1)),CostCode,0))) -> 0 | G32: =F32*D32 -> 0 | I32: =G32*H32 -> 0 | J32: =+G32*(1-H32) -> 0
A33: G | B33: OBJECTIVE: REMOVE PIPELINES | E33: =NA() -> 
B34: Remove pipes | C34: m | E34: =NA() ->  | F34: 0 | G34: 0 | I34: 0 | J34: 0
B35: Concrete plug deep pipes | C35: m3 | E35: =NA() ->  | F35: 0 | G35: 0 | I35: 0 | J35: 0
B36: Other | E36: =NA() ->  | F36: 0 | G36: 0 | I36: 0 | J36: 0
A37: H | B37: Groundwater Collection - Long-term Collection System | E37: =NA() -> 
B38: excavate/install sumps | C38: m2 | E38: =NA() ->  | F38: 0 | G38: 0 | I38: 0 | J38: 0
B39: install pumping wells | C39: m3 | E39: =NA() ->  | F39: 0 | G39: 0 | I39: 0 | J39: 0
B40: install pumps/pipelines/power supply | E40: =NA() ->  | F40: 0 | G40: 0 | I40: 0 | J40: 0
A41: I | B41: OBJECTIVE: COLLECT DRAINAGE FOR TREATMENT | E41: =NA() -> 
B42: Excavate channel | C42: m3 | E42: =NA() ->  | F42: 0 | G42: 0 | I42: 0 | J42: 0
B43: doze & spread excavated material | C43: m3 | E43: =NA() ->  | F43: 0 | G43: 0 | I43: 0 | J43: 0
B44: Vegetate, spread material | C44: ha | E44: =NA() ->  | F44: 0 | G44: 0 | I44: 0 | J44: 0
B45: Rip rap in channel base | C45: each | E45: =NA() ->  | F45: 0 | G45: 0 | I45: 0 | J45: 0
B46: Construct contaminated water storage pond | E46: =NA() -> 
B47: Excavation | C47: m3 | E47: =NA() ->  | F47: 0 | G47: 0 | I47: 0 | J47: 0
B48: supply geomembrame, HDPE, ES3, GCL | C48: m2 | E48: =NA() ->  | F48: 0 | G48: 0 | I48: 0 | J48: 0
B49: upper and lower bedding layers | C49: m3 | E49: =NA() ->  | F49: 0 | G49: 0 | I49: 0 | J49: 0
B50: install geomembrane, HDPE, ES3, GCL | C50: m2 | E50: =NA() ->  | F50: 0 | G50: 0 | I50: 0 | J50: 0
B51: erosion protection layer | C51: m3 | E51: =NA() ->  | F51: 0 | G51: 0 | I51: 0 | J51: 0
A52: J | B52: OBJECTIVE: TREAT DRAINAGE (see "ONGOING TREATMENT" for operating costs) | E52: =NA() -> 
B53: Build treatment plant | C53: LS | E53: =NA() ->  | F53: 0 | G53: 0 | I53: =G53*H53 -> 0 | J53: =+G53*(1-H53) -> 0
B54: build sludge containment facility | C54: LS | E54: =NA() ->  | F54: 0 | G54: 0 | I54: =G54*H54 -> 0 | J54: =+G54*(1-H54) -> 0
F55: Subtotal | G55: =SUM(G5:G54)+0.0001 -> 136277.3632 | H55: =+I55/G55 -> 0 | I55: =SUM(I5:I54) -> 0 | J55: =SUM(J5:J54) -> 136277.3631
H56: Pct Land | I56: Total Land | J56: Total Water

Sheet Mobilization
A1: 1 | B1: Mobilization:
B3: ACTIVITY/MATERIAL | C3: Units | D3: Quantity | E3: Cost Code | F3: Unit Cost | G3: Cost | H3: % Land | I3: Land Cost | J3: Water Cost
A4: A | B4: MOBILIZE HEAVY EQUIPMENT
C5: Equipment to regional centre
A6: . | B6: Excavators | C6: each | E6: =NA() ->  | F6: 150000 | G6: =F6*D6 -> 0 | I6: =G6*H6 -> 0 | J6: =+G6*(1-H6) -> 0
A7: . | B7: Dump trucks | C7: each | E7: =NA() ->  | F7: 50000 | G7: 0 | I7: 0 | J7: =+G7*(1-H7) -> 0
B8: Dozers | C8: each | E8: =NA() ->  | F8: 150000 | G8: 0 | I8: 0 | J8: 0
B9: Demolition shears | C9: each | E9: =NA() ->  | F9: 200000 | G9: 0 | I9: 0 | J9: 0
B10: Crane | C10: each | E10: =NA() ->  | F10: =IF(ISNA(E10),0,INDEX(IF(UPPER(RIGHT(E10,1))=Low,UnitCostLow, IF(UPPER(RIGHT(E10,1))=High,UnitCostHigh,UnitCostSpecified)),MATCH(UPPER(LEFT(E10,LEN(E10)-1)),CostCode,0))) -> 0 | G10: 0 | I10: 0 | J10: 0
B11: Light duty vehicles | C11: each | E11: =NA() ->  | F11: 0 | G11: 0 | I11: 0 | J11: 0
A12: . | B12: loader | C12: each | E12: =NA() ->  | F12: 150000 | G12: 0 | I12: 0 | J12: 0
A13: . | B13: Other | C13: each | E13: =NA() ->  | F13: 0 | G13: 0 | I13: 0 | J13: 0
C14: Equipment, regional centre to site | E14: =NA() -> 
A15: . | B15: Excavators | C15: km | D15: 1200 | E15: mherh | F15: 9.46098144 | G15: 11353.17773 | I15: 0 | J15: 11353.17773
A16: . | B16: Dump trucks | C16: km | D16: 3400 | E16: mherh | F16: 9.46098144 | G16: =F16*D16 -> 32167.3369 | I16: 0 | J16: 32167.3369
B17: Dozers | C17: km | D17: 1200 | E17: mherh | F17: 9.46098144 | G17: 11353.17773 | I17: 0 | J17: 11353.17773
B18: Demolition shears | C18: km | D18: 1200 | E18: mherh | F18: 9.46098144 | G18: 11353.17773 | I18: 0 | J18: 11353.17773
B19: Crane | C19: km | D19: 1200 | E19: mherh | F19: 9.46098144 | G19: 11353.17773 | I19: 0 | J19: 11353.17773
B20: Light duty vehicles | C20: km | D20: 3400 | E20: mherh | F20: 9.46098144 | G20: 32167.3369 | I20: 0 | J20: 32167.3369
A21: . | B21: loader | C21: km | D21: 2400 | E21: mherh | F21: 9.46098144 | G21: 22706.35546 | I21: 0 | J21: 22706.35546
A22: . | B22: Other | C22: km | E22: =NA() ->  | F22: 0 | G22: 0 | I22: 0 | J22: 0
A23: B | B23: MOBILIZE CAMP | E23: =NA() -> 
A24: . | C24: allow | D24: 1 | E24: =NA() ->  | F24: 100000 | G24: 100000 | I24: 0 | J24: 100000
A25: C | B25: MOBILIZE WORKERS | E25: =NA() -> 
B26: crew travel time | C26: mandays | D26: 420 | E26: =NA() ->  | F26: 600 | G26: 252000 | I26: =G26*H26 -> 0 | J26: =+G26*(1-H26) -> 252000
A27: . | B27: crew transportation | C27: each | D27: 30 | E27: =NA() ->  | F27: 6000 | G27: 180000 | I27: 0 | J27: 180000
A28: D | B28: MOBILIZE MISC. SUPPLIES | E28: =NA() -> 
A29: . | B29: Fuel | C29: litre | D29: 225000 | E29: =NA() ->  | F29: 1 | G29: 225000 | I29: 0 | J29: 225000
A30: . | B30: Minor tools and equipment | C30: allow | D30: 1 | E30: =NA() ->  | F30: 100000 | G30: 100000 | I30: 0 | J30: 100000
A31: . | B31: Truck tires | C31: allow | D31: 1 | E31: =NA() ->  | F31: 50000 | G31: 50000 | I31: 0 | J31: 50000
B32: Delivery | C32: truck loads | E32: =NA() ->  | F32: 6033 | G32: 0 | I32: =G32*H32 -> 0 | J32: =+G32*(1-H32) -> 0
A33: E | B33: WORKER ACCOMODATIONS | E33: =NA() -> 
A34: . | C34: manmths | D34: 210 | E34: accml | F34: 1483.19424 | G34: 311470.7904 | I34: 0 | J34: 311470.7904
A35: F | B35: WINTER ROAD | E35: =NA() ->  | I35: 0 | J35: 0
A36: . | B36: 3 year, const & operate section into Jericho | C36: km | D36: 195 | E36: wrh | F36: 2943.91584 | G36: 574063.5888 | I36: 0 | J36: 574063.5888
A37: . | B37: Limited winter use | C37: km | E37: =NA() ->  | F37: 0 | G37: 0 | I37: 0 | J37: 0
A38: . | B38: Winter road tariff, 20,000T x 195 km | C38: km | D38: 3900000 | E38: wrl | F38: 0.11 | G38: =F38*D38 -> 429000 | I38: 0 | J38: 429000
A39: G | B39: INTERIM CARE & MAINTENANCE | E39: =NA() -> 
B40: on-site caretaker | C40: annual | D40: 1 | E40: =NA() ->  | F40: 95000 | G40: =F40*D40 -> 95000
B41: spring extra personnel | C41: months | E41: =NA() ->  | F41: 23750 | G41: 0
B42: fuel and misc. supplies | C42: litre | D42: 20000 | E42: =NA() ->  | F42: 1 | G42: 20000
B43: electrician | C43: each | E43: =NA() ->  | F43: 3300 | G43: 0
B44: mechnaic | C44: each | D44: 1 | E44: =NA() ->  | F44: 80000 | G44: 80000
B45: pick-up truck | C45: each | D45: 1 | E45: =NA() ->  | F45: 15000 | G45: 15000
B46: small dozer | C46: allow | D46: 1 | E46: =NA() ->  | F46: 25000 | G46: 25000
B47: small excavator | C47: allow | D47: 1 | E47: =NA() ->  | F47: 0 | G47: 0
B48: snow machine | C48: allow | D48: 1 | E48: =NA() ->  | F48: 3000 | G48: 3000
B49: communications | C49: allow | D49: 1 | E49: =NA() ->  | F49: 25000 | G49: 25000
B50: Water licence sampling & reporting | C50: each | E50: =NA() ->  | F50: 450000 | G50: 0
B51: Geotechnical assessment | C51: each | E51: =NA() ->  | F51: 10000 | G51: 0
B52: Other | C52: each | E52: =NA() ->  | F52: 0 | G52: 0
E53: =NA() ->  | F53: sub-total annual C&M cost | G53: =SUM(G40:G52) -> 263000
B54: Total C&M cost | C54: years | D54: =SUM(G40:G52) -> 263000 | E54: =NA() ->  | F54: 2 | G54: =F54*D54 -> 526000 | I54: =G54*H54 -> 0 | J54: =+G54*(1-H54) -> 526000
F55: Subtotal | G55: =SUM(G6:G54)-SUM(G40:G53)+0.0001 -> 2879988.119 | H55: =+I55/G55 -> 0 | I55: =SUM(I6:I54) -> 0 | J55: =SUM(J6:J54) -> 2879988.119
H56: Pct Land | I56: Total Land | J56: Total Water

Sheet PostClosure
A1: 1 | B1: Post-Closure Monitoring & Maintenance:
B3: ACTIVITY/MATERIAL | C3: Units | D3: Quantity | E3: Cost Code | F3: Unit Cost | G3: Cost | H3: % Land | I3: Land Cost | J3: Water Cost
A4: A | B4: OBJECTIVE: MONITORING & INSPECTIONS
B5: Annual geotechnical insp. | C5: each | D5: 7 | E5: =NA() ->  | F5: 15000 | G5: =F5*D5 -> 105000 | I5: =G5*H5 -> 0 | J5: =+G5*(1-H5) -> 105000
A6: . | B6: Survey inspection | C6: each | E6: =NA() ->  | F6: =IF(ISNA(E6),0,INDEX(IF(UPPER(RIGHT(E6,1))=Low,UnitCostLow, IF(UPPER(RIGHT(E6,1))=High,UnitCostHigh,UnitCostSpecified)),MATCH(UPPER(LEFT(E6,LEN(E6)-1)),CostCode,0))) -> 0 | G6: =F6*D6 -> 0 | I6: 0 | J6: 0
A7: . | B7: Surface water sampling | C7: each | D7: 10 | E7: =NA() ->  | F7: 40000 | G7: =F7*D7 -> 400000 | I7: 0 | J7: 400000
B8: Groundwater Sampling | C8: each | E8: =NA() ->  | F8: 0 | G8: =F8*D8 -> 0 | I8: 0 | J8: 0
B9: Receiving/downstream water sampling | C9: each | E9: =NA() ->  | F9: 0 | G9: 0 | I9: 0 | J9: 0
B10: Monitoring program as per plan | C10: each | E10: =NA() ->  | G10: 0 | I10: 0 | J10: 0
A11: . | B11: on-site transportation | C11: each | E11: =NA() ->  | F11: 0 | G11: 0 | I11: 0 | J11: 0
B12: transporation to site (4 trips/yr) | C12: each | D12: 40 | E12: =NA() ->  | F12: 7500 | G12: 300000 | I12: 0 | J12: 300000
A13: . | B13: Other | E13: =NA() ->  | F13: 0 | G13: 0 | I13: 0 | J13: 0
A14: B | B14: OBJECTIVE: COVER MAINTENANCE | E14: =NA() -> 
A15: . | B15: Repair erosion - infill gullies | C15: allow | E15: =NA() ->  | F15: 0 | G15: =F15*D15 -> 0 | I15: 0 | J15: 0
A16: . | B16: Repair erosion - upgrade diversion ditches | C16: allow | E16: =NA() ->  | F16: 0 | G16: =F16*D16 -> 0 | I16: 0 | J16: 0
A17: . | B17: Remove problem vegetation | C17: allow | E17: =NA() ->  | F17: 0 | G17: =F17*D17 -> 0 | I17: 0 | J17: 0
A18: . | B18: Repair animal damage | C18: allow | E18: =NA() ->  | F18: 0 | G18: =F18*D18 -> 0 | I18: 0 | J18: 0
A19: . | B19: Repair/upgrade access controls | C19: allow | E19: =NA() ->  | F19: 0 | G19: =F19*D19 -> 0 | I19: 0 | J19: 0
B20: Other | E20: =NA() ->  | F20: 0 | G20: 0 | I20: 0 | J20: 0
A21: C | B21: SPILLWAY MAINTENANCE | E21: =NA() -> 
B22: Repair erosion | C22: m3 | E22: =NA() ->  | F22: 0 | G22: 0 | I22: 0 | J22: 0
B23: Clear spillway | C23: each | E23: =NA() ->  | F23: 0 | G23: 0 | I23: 0 | J23: 0
B24: Other | E24: =NA() ->  | F24: 0 | G24: 0 | I24: 0 | J24: 0
A25: D | B25: POST-CLOSURE WATER TREATMENT | E25: =NA() -> 
B26: Annual water treatment cost, from Ongoing water | E26: =NA() ->  | G26: =F26*D26 -> 0 | I26: 0 | J26: =G26*(1-H26) -> 0
B28: Subtotal, Annual post-closure costs | G28: =SUM(G5:G27)+0.0001 -> 805000.0001 | I28: =SUM(I5:I27) -> 0 | J28: =SUM(J5:J27) -> 805000
B29: Discount rate for calculation of net present value of post-closure cost, % | E29: 0
B30: Number of years of post-closure activity | E30: 1 | F30: years
B31: Present Value of payment stream | G31: =PV(DiscountRate,PCYears, PCAnnualTotal)*-1 -> 805000.0001 | H31: =+I28/G28 -> 0 | I31: =G31*H31 -> 0 | J31: =G31*(1-H31) -> 805000.0001
H32: Pct Land | I32: Total Land | J32: Total Water

Sheet Estimator
A1: A | B1: Unit Cost Estimator | E1: Equipment Productivity Figures and Graphs have been reproduced from Caterpillar Performance Handbook - Edition 32 | O1: http://www.spec-check.com/komatsu/spec.cfm?cid=794488109
A2: A10 | B2: EXCAVATION | G2: C | H2: Haul and Dumping | M2: E | N2: Spreading - Dozing | P2: spreading
A3: A11 | B3: PRODUCTIVITY | C3: Cat 345 B | G3: C10 | H3: PRODUCTIVITY | I3: 769 rock truck | M3: E10 | N3: PRODUCTIVITY | O3: Cat D8
A4: A12 | B4: bucket capacity | C4: m3 | D4: 2.4 | G4: C11 | H4: Truck capacity | I4: m3 | J4: 24 | M4: E11 | N4: Estimate production using example curves below or | O4: m3/hr | P4: 600
A5: A13 | B5: fill factor | C5: % | D5: 0.75 | G5: C12 | H5: 0 | M5: E12 | N5: equivalent from other supplier
A6: A14 | B6: cycle time | C6: seconds | D6: 45 | G6: C13 | H6: Cycle time | M6: E13 | N6: operator skill | P6: 0.75
A7: A15 | B7: operator skill | C7: % | D7: 0.75 | G7: C14 | H7: load time | I7: min. | J7: 6 | M7: E14 | N7: material type, see table | P7: 0.8
A8: A16 | B8: machine availability | C8: % | D8: 0.83 | G8: C15 | H8: haul distance | I8: km | J8: 1.5 | M8: E15 | N8: slot dozing | P8: 1
A9: A17 | B9: Altitude adjustment | C9: % | D9: 1 | G9: C16 | H9: average velocity | I9: km/hr | J9: 20 | M9: E16 | N9: side by side dozing | P9: 1
A10: A18 | B10: Hourly productivity | C10: m3/hr | D10: =+D4*D5*(60*60/D6)*D7*D8*D9 -> 89.64 | G10: C17 | H10: haul time + return time | I10: min. | J10: =+J8/J9*60*2 -> 9 | M10: E17 | N10: visibility | P10: 1
A11: A19 | G11: C18 | H11: wait time | I11: min. | J11: 0.5 | M11: E18 | N11: job efficiency | P11: 0.83
A12: A20 | G12: C19 | H12: dump time | I12: min. | J12: 1 | M12: E19 | N12: Altitude adjustment | P12: 1
A13: A21 | G13: C20 | H13: machine availability | I13: % | J13: 0.83 | M13: E20 | N13: slope adjustment | P13: 1
A14: A22 | G14: C21 | H14: Altitude adjustment | I14: % | J14: 1 | M14: E21
A15: A23 | G15: C22 | H15: 0 | I15: ave. min/cycle | J15: =+J7+J10+J11+J12*J13*J14 -> 16.33 | M15: E22
G16: C23 | H16: Hourly productivity | I16: m3/hr | J16: =60/J15*J4 -> 88.18126148 | M16: E23 | N16: Hourly productivity | O16: m3/hr | P16: =+P4*P6*P7*P8*P9*P10*P11*P12*P13 -> 298.8
A18: B | B18: OPERATING COSTS | G18: D | H18: OPERATING COSTS | M18: F | N18: OPERATING COSTS
A19: B10 | B19: use contractor supplied cost or insert cost components | G19: D10 | H19: use contractor supplied cost or insert cost components | M19: F10 | N19: use contractor supplied cost or insert cost components
A20: B11 | B20: Hourly rate - contractor supplied | D20: 150 | G20: D11 | H20: Hourly rate - contractor supplied | J20: 140 | M20: F11 | N20: Hourly rate - contractor supplied | P20: 190
A21: B12 | B21: Excvation cost | D21: =+D20/D10 -> 1.673360107 | E21: $/m3 | G21: D12 | H21: Excvation cost | J21: =+J20/J16 -> 1.587638889 | K21: $/m3 | M21: F12 | N21: Excvation cost | P21: =+P20/P16 -> 0.6358768407 | Q21: $/m3
A22: B13 | G22: D13 | M22: F13
A23: B14 | G23: D14 | M23: F14
A24: B15 | B24: Cost of: | G24: D15 | H24: Cost of: | M24: F15 | N24: Cost of:
A25: B16 | B25: ownership, daily | E25: $/day | G25: D16 | H25: ownership, daily | K25: $/day | M25: F16 | N25: ownership, daily | Q25: $/day
A26: B17 | B26: maintenance | E26: $/hr | G26: D17 | H26: maintenance | K26: $/hr | M26: F17 | N26: maintenance | Q26: $/hr
A27: B18 | B27: fuel | E27: $/hr | G27: D18 | H27: fuel | K27: $/hr | M27: F18 | N27: fuel | Q27: $/hr
A28: B19 | B28: consumables (cutters, tires) | E28: $/hr | G28: D19 | H28: consumables (cutters, tires) | K28: $/hr | M28: F19 | N28: consumables (cutters, tires) | Q28: $/hr
A29: B20 | B29: operator | E29: $/hr | G29: D20 | H29: operator | K29: $/hr | M29: F20 | N29: operator | Q29: $/hr
A30: B21 | C30: total hourly cost | D30: =D25/10+SUM(D26:D29) -> 0 | E30: $/hr | G30: D21 | I30: total hourly Cost | J30: =J25/10+SUM(J26:J29) -> 0 | K30: $/hr | M30: F21 | O30: total hourly Cost | P30: =P25/10+SUM(P26:P29) -> 0 | Q30: $/hr
A31: B22 | B31: Excavation cost | D31: =+D30/D10 -> 0 | E31: $/m3 | G31: D22 | H31: Excavation cost | J31: =+J30/J15 -> 0 | K31: $/m3 | M31: F22 | N31: Excavation cost | P31: =+P30/P16 -> 0 | Q31: $/m3
A34: Sum of costs for excavate load haul dump rock cover on tailings | F34: =+D21+J21+P21 -> 3.896875837
C35: ripping in excavation area | F35: 0.25
C36: testing | F36: 0.2
F37: =SUM(F34:F36) -> 4.346875837 | G37: /m3
B51: Example Performance Factors
A53: G | B53: Excavator | G53: H | H53: Trucking | N53: Dozing
A54: G10 | B54: Fill Factor
A55: G11 | B55: Material | C55: % of heaped bucket capacity | G55: H10 | H55: 0 | I55: Cat 771 D | J55: Cat 777D | K55: Cat 789C
A56: G12 | B56: Moist loam or sandy clay | C56: 100 - 110 | G56: H11 | H56: Truck capacity - heaped, m3 | I56: 27.5 | J56: 60.5 | K56: 137
A57: G13 | B57: sand and gravel (not till) | C57: 95 - 110 | G57: H12
A58: G14 | B58: hard tough clay | C58: 80 - 90 | G58: H13
A59: G15 | B59: rock - will blasted | C59: 60 - 75 | G59: H14
A60: G16 | B60: rock - poorly blasted | C60: 40 -60 | G60: H15
A61: G17 | B61: 0 | G61: H16
A62: G18 | B62: Cycle Times - Typical | C62: Seconds | G62: H17
A63: G19 | B63: description | D63: Cat 320 | E63: Cat 325B | F63: Cat 375 | G63: H18
A64: G20 | C64: heaped bucket capacity, m3 | D64: 1.5 | E64: 2.2 | F64: 5.4 | G64: H19
A65: G21 | B65: easy digging, shallow digging, small swing angle | C65: excellent | D65: 16 | E65: 18 | F65: 20 | G65: H20
A66: G22 | B66: med. To hard digging, rocky soil, swing angle to 90 deg. | C66: average | D66: 23 | E66: 23 | F66: 25 | G66: H21
A67: G23 | B67: toughest digging, sandstone, caliche, at max. machine depth, swing angle > 120 deg. | C67: poor | D67: 27 | E67: 29 | F67: 35 | G67: H22
A68: G24 | B68: 0 | G68: H23
A69: G25 | B69: Operator Skill | C69: poor | D69: average | E69: good | G69: H24
A70: G26 | B70: 0 | C70: 0.6 | D70: 0.75 | E70: 1 | G70: H25
A71: G27 | B71: 0 | G71: H26
A72: G28 | B72: Machine availability | C72: poor | D72: average | E72: good | G72: H27 | H72: Machine availability | I72: poor | J72: average | K72: good
C73: 0.9 | D73: 0.95 | E73: 1 | G73: H28 | I73: 0.9 | J73: 0.95 | K73: 1

Sheet Ongoing Water
B1: WATER TREATMENT COSTS
D2: ANNUAL VOLUME OF WATER (m3)
B4: Reagent addition rates
B5: Reagent | D5: kg reagent/m3 water | F5: cost in $/kg, FOB site | G5: Annual reagent cost
B6: H2O2 | E6: kg/m3 | G6: =WaterVol*D6*F6 -> 0
B7: lime | E7: kg/m3 | G7: =WaterVol*D7*F7 -> 0
B8: ferric sulphate | E8: kg/m3 | G8: =WaterVol*D8*F8 -> 0
B9: ferrous sulphate | E9: kg/m3 | G9: =WaterVol*D9*F9 -> 0
B10: flocculents | E10: kg/m3 | G10: =WaterVol*D10*F10 -> 0
F12: TOTAL | G12: =SUM(G6:G11) -> 0
B14: Supplies and Labour
B15: power, kW-hr | E15: rate, $/kW-hr | G15: =D15*F15 -> 0
B16: misc. supplies, hoses, tools | G16: 28500
B17: sampling equip. | G17: 0
B18: equip. maintenance and parts | G18: 0
B19: water analysis | G19: 1320
B20: reporting | G20: 0
B21: truck rental | G21: 15000
B22: air support | G22: 10000
B23: communications | G23: 5500
B24: road maintenace & snow plowing | G24: 0
B25: electrician/mechanic for treatment plant & power supply | G25: 4200
E26: Annual cost | G26: =SUM(G15:G25) -> 64520
C28: labor, hourly rate | D28: 55
C29: men per day for water treatment work | G29: 3
C30: on site, days per year | G30: 84
C31: spring/fall maintenance, extra work
C32: hours worked per year | G32: 2520
C33: annual labor cost | G33: =G32*D28 -> 138600
F35: Total, labour and supplies | G35: =G26+G33 -> 203120
B38: TOTAL ANNUAL COSTS, reagents + labour + supplies + site access | G38: =G12+G35+D52 -> 203120
B39: Average treatment cost, $/m3 | G39: =IF(WaterVol=0,0,OWTotal/WaterVol) -> 0
B41: Water analyses
B42: samples per month | D42: 10
B43: analysis cost/sample | D43: 110
B44: shipping | D44: 220
B45: Total Water Sampling | D45: =D42*D43+D44 -> 1320
B48: Site Access
B49: road | D49: 0
B50: air | D50: 0
B51: winter road | D51: 0
B52: annual site access cost | D52: =SUM(D49:D51) -> 0

Sheet Unit_Costs
A1: Unit Cost Table | I1: this version updated | J1: 2011-05-01 | K1: 2% added to all costs for inflation
A2: for additional construciton cost data check the associations below, or use the Estimator Worksheet
B3: Alberta Road Builders & Heavy Construction Association
B4: BC Road Builders Blue Book at : www.roadbuilders.bc.ca
A5: ITEM | B5: Detail | D5: COST CODE | E5: UNITS | F5: LOW $ | G5: HIGH $ | H5: SPECIFIED $
A7: excavate Rock, Bulk | J7: COMMENTS
B8: drill, blast, load short haul (<500m) Dump | D8: RB1 | E8: m3 | F8: 10.5059592 | G8: 15.730848 | J8: quarry operations for bulk fill
B9: RB1 + long haul, up to 1500 m | D9: RB2 | E9: m3 | F9: 11.1239568 | G9: 16.4050272
B10: RB1 + spread and compact | D10: RB3 | E10: m3 | F10: 11.1239568 | G10: 16.4050272
B11: RB1 + long haul + spread and compact | D11: RB4 | E11: m3 | F11: 11.7419544 | G11: 28.371708
B12: RB1 + Specified activity | D12: RBS | E12: m3 | F12: =10.51*1.15 -> 12.0865 | J12: use low and add 15% premium for work done in winter
A13: excavate Rock, Controlled
B14: drill, blast, load short haul (<500m) Dump | D14: RC1 | E14: m3 | F14: 26.01 | G14: 37.079856 | J14: low - foundation excavation, high - spillway excavation
B15: RC1 + long haul, up to 1500 m | D15: RC2 | E15: m3 | F15: 11.7419544 | G15: 16.9668432
B16: RC1 + spread and compact | D16: RC3 | E16: m3 | F16: 11.1239568 | G16: 16.4050272
B17: RC1 + long haul + spread and compact | D17: RC4 | E17: m3 | F17: 12.4723152 | G17: 17.67473136
B18: RC1 + Specified activity | D18: RCS | E18: m3 | H18: 159.732 | J18: $145/M3-drift excavation
A19: excavate Soil, Bulk
B20: clear & grub | D20: SBC | E20: m2 | F20: 3.1212 | G20: 0
B21: excavate, load short haul (<500m) dump | D21: SB1 | E21: m3 | F21: 3.5956224 | G21: 5.4496152 | J21: LOW cost: excavation of loose soil, high volume
B22: SB1 + long haul, up to 1500 m | D22: SB2 | E22: m3 | F22: 4.47205536 | G22: 6.70808304 | J22: LOW cost: excavation of loose soil, 1.5 km haul, high volume
B23: SB1 + spread and compact | D23: SB3 | E23: m3 | F23: 4.1574384 | G23: 5.96648592
B24: SB1 + long haul + spread and compact | D24: SB4 | E24: m3 | F24: 5.056344 | G24: 10.0565064 | J24: LOW cost: excavation of loose soil, 1.5 km haul, high volume, const. of simple soil cover
B26: SB1 + Specified activity | D26: SBS | E26: m3 | F26: 2.59558992 | G26: 7.16877216 | H26: 12.06252 | J26: LOW cost: rehandle waste rock dump into pit, >500,000 m3, 2 km haul
B27: other | F27: 0 | G27: 0 | H27: 0 | J27: SPECIFIED cost: rehandle waste rock, haul 3 km, place & compact on dam
B28: Soil, tailings | D28: SBT | E28: m3 | F28: 1.24848 | G28: 3.402108 | H28: 14.28 | J28: LOW cost: doze frost heaves HIGH cost: contour - wet or frozen, Specialized -haul/place wet infill
A29: excavate Soil, Controlled
B30: excavate, load short haul (<500 m), dump | D30: SC1 | E30: m3 | F30: 6.30357552 | G30: 8.5957848
B31: SC1 + long haul, up to 1500 m | D31: SC2 | E31: m3 | F31: 7.8092424 | G31: 10.83181248
B32: SC1 + spread and compact | D32: SC3 | E32: m3 | F32: 6.30357552 | G32: 13.10154912 | J32: HIGH cost: for simple soil covers
B33: SC1 + long haul + spread and compact | D33: SC4 | E33: m3 | F33: 7.0788816 | G33: 21.4051896 | J33: HIGH cost: for complex covers & dam construction, spillway repair, LOW volume
B34: SC1 + Specified activity | D34: SCS | E34: m3 | G34: 22.8888 | H34: 17.3502 | J34: SPECIFIED cost: backfill adit with waste rock, High - sand bedding layer for liners
A35: Geo-synthetics
B36: geotextile, filter cloth | D36: GST | E36: M2 | F36: 1.11239568 | G36: 3.1212 | J36: high - FOB Yellowknife
B37: geogrid | D37: GSG | E37: M2 | F37: 5.31477936 | G37: 0
B38: liner, HDPE | D38: GSHDPE | E38: M2 | F38: 6.61819248 | G38: 0
B39: liner, ES3 | D39: GSES3 | E39: m2 | F39: 18.62316 | G39: 0 | J39: low, FOB Yellowknife
B40: liner, PVC | D40: GSPVC | E40: M2 | F40: 0 | G40: 0
B41: geosynthetic installation | D41: GSI | E41: m2 | F41: 0.93261456 | G41: 13.005 | J41: low, geotextile, high - ES3 or HDPE
B42: bentonite soil ammendment | D42: GSBA | E42: tonne | F42: 284.278896 | G42: 321.358752 | J42: FOB Edmonton, add shipping & mixing
A43: Shaft, Raise & Portal Closures
B44: Shaft & Raises | D44: SR | E44: m2 | F44: 595.52496 | G44: 1966.356 | J44: LOW cost: pre-cast concrete slabs, little site prep. HIGH cost: for hand construction, remote site
B45: Portals | D45: POR | E45: m3 | F45: 0 | G45: 230.34456 | H45: 1101.6 | J45: HIGH cost: for excavate & backfill collapsed portal SPECIFIED cost: installed pressure plug
A46: Concrete work
B47: Small pour, no forms | D47: CS | E47: m3 | F47: 333.718704 | G47: 668.56104
B48: Large pour, no forms | D48: CL | E48: m3 | F48: 264.05352 | G48: 393.2712
B49: Small pour, Formed | D49: CSF | E49: m3 | F49: 393.2712 | G49: 1966.356
B50: Large pour, Formed | D50: CLF | E50: m3 | F50: 325.85328 | G50: 460.68912
A51: Vegetation
B52: Hydroseed, Flat | D52: VHF | E52: ha | F52: 1792.19304 | G52: 5561.9784
B53: Hydroseed, Sloped | D53: VHS | E53: ha | F53: 2076.471936 | G53: 6241.77576
B54: veg. Blanket/erosion mat | D54: VB | E54: ha | F54: 12359.952 | G54: 14831.9424
B55: Tree planting | D55: VT | E55: ha | F55: 12359.952 | G55: 14831.9424
B56: Wetland species | D56: VW | E56: ha | F56: 61799.76 | G56: 92699.64
A57: Pumps
B58: Small, < | D58: PS | E58: each | F58: 3370.896 | G58: 6741.792
B59: Large, > | D59: PL | E59: each | F59: 5618.16 | G59: 112363.2 | J59: large - 250 hp Gould w/diesel motor
A60: PiPes
B61: Small, < 6 inch diameter | D61: PPS | E61: m | F61: 0.561816 | G61: 5.61816 | J61: LOW cost: pipe removal, HIGH cost: supply new pipe SPECIFIED: small, heat traced & insulated pipe
B62: Large, > 6 inch diameter | D62: PPL | E62: m | F62: 1.123632 | G62: 202.25376 | J62: LOW cost: pipe removal, HIGH cost: supply 24" 100 psi HDPE pipe, FOB Edm.
J63: add shipping & installation
A64: pump sand BackFill | D64: BF | E64: m3 | F64: 6.179976 | G64: 18.539928
A65: Fence | D65: F | E65: m | F65: 12.4848 | G65: 187.272
A66: Signs | D66: S | E66: each | F66: 12.359952 | G66: 37.079856
A67: rock, Drill and Blast only | D67: DB | E67: m3 | F67: 12.359952 | G67: 24.719904
A68: excavate Rip Rap
B69: drill, blast, load short haul (<500 m) dump and spread | D69: RR1 | E69: m3 | F69: 12.3037704 | G69: 18.3713832
B70: RR1 + long haul | D70: RR2 | E70: m3 | F70: 12.4723152 | G70: 19.0455624 | J70: HIGH cost: quarry & place rip rap in channel
B71: excavate rock from waste dump, short haul, spread | D71: RR3 | E71: m3 | F71: 4.7192544 | G71: 6.49459296 | J71: LOW cost: removal of 18 in minus from dump, long haul and spread
B72: RR3 + long haul | D72: RR4 | E72: m3 | F72: 5.25859776 | G72: 7.0227
B73: specified rip rap source | D73: RR5 | E73: m3
A74: Import LimeStone | D74: ILS | E74: tonne | F74: 9.8879616 | G74: 14.8319424
A75: Import LiMe | D75: ILM | E75: tonne | F75: 187.272 | G75: 556.614 | J75: LOW cost: bulk shipping, high volume, FOB Vancouver/Edmonton
J76: HIGH cost: bags delivered to central Yukon, small volume
A77: Grouting | D77: G | E77: m3 | F77: 218.1168 | G77: 264.384 | J77: HIGH cost: cement, FOB Yellowknife
A78: Dozing
B79: doze Rock piles | D79: DR | E79: m3 | F79: 0.9550872 | G79: 2.1910824 | J79: LOW cost: doze crest off dump
B80: doze overburden/Soil piles | D80: DS | E80: m3 | F80: 0.87643296 | G80: 3.49449552 | J80: HIGH cost: push up to 300 m
E81: each | F81: 0 | G81: 0
E82: each | F82: 0 | G82: 0
A83: Buildings - Decontaminate
B84: Chemicals | D84: BDC | E84: m3
B85: Asbestos | D85: BDA | E85: m2 | F85: 23.596272 | G85: 47.192544 | J85: LOW cost: removal of asbestos siding & flooring HIGH cost: removal of insulated pipes, friable asbestos
F86: 0 | G86: 0 | H86: 0
A87: Buildings - Remove
B88: areas are per floor on 3 m average height | F88: 0 | G88: 0 | H88: 0 | J88: LOW cost: removal and on-site disposal - small wooden structures
B89: Wood - teardown | D89: BRW1 | E89: m2 | F89: 24.158088 | G89: 37.079856
B90: Wood - burn | D90: BRW2 | E90: m2 | F90: 6.179976 | G90: 11.23632 | J90: high cost: wooden tent structures | P90: assumed 2 people and 3 hours per tent 21m2 labour rate 37.8
B91: Masonry | D91: BRM | E91: m2 | F91: 26.5738968 | G91: 37.079856
B92: Concrete | D92: BRC | E92: m | F92: 37.079856 | G92: 55.619784 | H92: 6.6096
B93: Steel - teardown | D93: BRS1 | E93: m2 | F93: 39.5518464 | G93: 59.3277696 | H93: 264.384
B94: Steel - salvage | D94: BRS2 | E94: m2 | F94: 61.79976 | G94: 92.69964
A95: Power & Pipe Lines
B96: Power lines, remove | D96: POWR | E96: each | F96: 23.4839088 | G96: 5191.17984
E97: kg | F97: 0 | G97: 1.76868
A98: Laboratory Chemicals
B99: Remove from site | D99: LCR | E99: pallet | F99: 1966.356 | G99: 2606.82624
B100: Dispose on site | D100: LCD | E100: each
A101: PCB - Remove from site | D101: PCBR | E101: litre | F101: 37.079856 | G101: 43.259832 | J101: LOW cost: shipping, handling & disposal from Yellowknife
F102: 0 | G102: 0 | H102: 0
A103: Fuel
B104: Remove from site | D104: FR | E104: kg | F104: 1.227672 | G104: 1.76868 | Q104: cost updated from helicopter and twin otter rates
B105: Burn on site | D105: FB | E105: kg
A106: Oil
B107: Remove from site | D107: OR | E107: litre | F107: 0.3932712 | G107: 1.14610464 | Q107: cost not changed
B108: Burn on site | D108: OB | E108: litre | F108: 0.3932712 | G108: 0.6179976
A109: Process Chemicals
B110: Remove from site | D110: PCR | E110: kg | F110: 0.3932712 | G110: 2.3034456
B111: Dispose on site | D111: PCD | E111: kg
A112: Explosives
B113: Remove from site | D113: ER | E113: kg | F113: 0 | G113: 2.4719904
B114: Dispose on site | D114: ED | E114: kg
A115: Contaminated Soils
B116: Remediate on site | D116: CSR | E116: m3 | F116: 43.259832 | G116: 134.83584 | J116: LOW cost: bio-remediate on-site. HIGH cost: ship off-site to landfil as haz. waste | Q116: assumed contaiminated material to depth of 30 cm 4.5 m3
B117: environmental investigation | D117: CSEI | E117: each | F117: 2080.8 | G117: 0
B118: consolidate & cover | D118: Use cost code items 1 - 4 | F118: 0 | G118: 0 | H118: 0
B119: cover in place | D119: Use cost code items 1 - 4 | F119: 0 | G119: 0 | H119: 0
A120: Mobilize Heavy Equipment
B121: Road access | D121: MHER | E121: $/km | F121: 3.15740592 | G121: 9.46098144 | H121: 2.25828 | J121: SPECIFIED cost: $/tonne/km in cargo plane
B122: Air access | D122: MHEA | E122: each | H122: 1514.7 | J122: SPECIFIED cost: helicopter cost, $/hr of operation
A123: Mobilize Camp
B124: <20 persons Road access | D124: MC<R | E124: each
B125: <20 persons Air access | D125: MC<A | E125: each | F125: 1530 | J125: cost of tents and equipment
A126: Mobilize Workers
B127: mobilize | D127: MM< | E127: person | F127: 3121.2 | G127: 6138.36 | H127: 0 | J127: crew flight from yellowknife low:turbo beaver, high helicopter/twin otter | P127: used daily minimum - fuel not calcuated
B128: >20 persons | D128: MM> | E128: person | F128: 3121.2 | G128: 6138.36
B129: crew travel time | D129: MTT | E129: hr | F129: 39.32712 | G129: 42.6564 | H129: 0
A130: ACCoModation | D130: ACCM | E130: month | F130: 1483.19424 | G130: 2224.79136 | J130: LOW cost, accom in existing camp, per man, HIGH cost: - supply new camp
A131: Mobilize Misc. Supplies | D131: MMS | E131: each | H131: 1473.9 | J131: removal of 20 kw generator 404 kg; 10 100lb propane
A132: Winter Road | D132: WR | E132: km | F132: 1483.19424 | G132: 2943.91584 | H132: 1890.06 | J132: Speicalized winter road to 40,000 kg capactiy
A133: Visual site Inspection | D133: VI | E133: each | F133: 3955.18464 | G133: 7977.7872 | H133: 11016
A134: Survey site Inspection | D134: SI | E134: each
A135: Water Sampling | D135: WS | E135: each | F135: 6179.976 | G135: 10112.688
A136: site inspection RePorT | D136: RPT | E136: each | G136: 12359.952
A137: Security Guard | D137: SG | E137: pers/mon | F137: 6179.976 | G137: 8651.9664
A138: Maintain Pumping | D138: MP | E138: month | F138: 3707.9856
A139: Clear SpillWay | D139: CSW | E139: each | F139: 2101.19184 | G139: 5932.77696
A140: Build Treatment Plant
B141: Small (< 1000 m3/d) | D141: BTPS | E141: lump sum | F141: 1123632 | G141: 2247264
B142: Large (> 1000 m3/d) | D142: BTPL | E142: lump sum | F142: 2247264 | G142: 3932712
A143: Operate Treatment Plant | D143: OTP | E143: m3 | F143: 0.32585328 | G143: 1.8539928
A144: SCariFY road and | D144: SCFY | E144: ha | F144: 3960.8028 | G144: 5561.9784 | H144: 1982.88
A145: install water breaks | H145: 0
A146: Water Treatment Chemicals
A147: ferric sulphate | D147: ferric | E147: kg | F147: 0.75283344 | G147: 0 | H147: 0
A148: ferrous sulphate | D148: ferrous | E148: kg | F148: 0.49439808 | G148: 0 | H148: 0
A149: lime | D149: lime | E149: kg | F149: 0.3370896 | G149: 0 | H149: 0
A150: hydrogen peroxide, 50% | D150: hperox | E150: kg | F150: 1.60679376 | G150: 0 | H150: 0
A151: Sodium Metabisulfate | D151: Nametab | E151: kg | F151: 1.11239568 | G151: 0 | H151: 0
A152: Caustic soda, 50% | D152: caustic | E152: kg | F152: 0.69665184 | G152: 0 | H152: 0
A153: Sulfuric acid, 93% | D153: sulfuric | E153: kg | F153: 0.29214432 | G153: 0 | H153: 0
A154: flocculant | D154: flocc | E154: kg | F154: 6.05637648 | G154: 0 | H154: 0
A155: copper sulphate | D155: copper | E155: kg | F155: 0 | G155: 0 | H155: 0
A156: typical shipping, to Whitehorse or Yellowknife | E156: kg | F156: 0.080901504 | G156: 0 | H156: 0
F157: 0 | G157: 0 | H157: 0
A158: Typical Labour & Equipment Rates | F158: 0 | G158: 0 | H158: 0 | J158: updated may 2011
B159: Site manager | D159: Sman | E159: $/hr | F159: 77.112 | G159: 88.128 | H159: 0
B160: Mine superintendent | D160: super | E160: $/hr | F160: 57.12 | G160: 66.096 | H160: 0
B161: Environmental coordinator | D161: env-co | E161: $/hr | F161: 57.12 | G161: 66.096 | H161: 0
B162: Journeyman (mech, elec, weld) | D162: trade | E162: $/hr | F162: 55.08 | G162: 66.096 | H162: 0
B163: surveyor/mech | E163: $hr | F163: 63.75 | G163: 0 | H163: 0
B164: Equipment operator | D164: oper | E164: $/hr | F164: 58.65 | G164: 60.588 | H164: 0
B165: labour - skilled | D165: lab-s | E165: $/hr | F165: 56.1 | G165: 41.8608 | H165: 46.971 | J165: specified - water treatment plant operator
B166: labour - unskilled | D166: lab-us | E166: $/hr | F166: 51 | G166: 38.556 | H166: 0
B167: Security / first aid | D167: safety | E167: $/hr | F167: 38.658 | G167: 52.8768 | H167: 0
B168: Admin. | D168: admin | E168: $/hr | F168: 46.2672 | G168: 53.9784 | H168: 0
F169: 0 | G169: 0 | H169: 0
B170: Front end loader, ?, Cat992 | D170: loader | E170: $/hr | F170: 282.54 | G170: 363.528 | H170: 0 | J170: low - 988 loader, high - 992 loader
B171: excavator, Cat325 | D171: excav | E171: $/hr | F171: 193.8 | G171: 192.78 | H171: 0 | J171: fuel and operator
B172: dump truck - tandem | D172: dumpt | E172: $/hr | F172: 0 | G172: 0 | H172: 0
B173: dump truck off road, Cat 777 | D173: dumpo | E173: $/hr | F173: 291.924 | G173: 0 | H173: 0
B174: dozer, D8, D10 | D174: dozer | E174: $/hr | F174: 229.5 | G174: 330.48 | H174: 0 | J174: fuel & oper. Incl.
B175: smooth drum compactor, Cat CS563 | D175: comp | E175: $/hr | F175: 96.9 | G175: 0 | H175: 0 | J175: fuel & oper. Incl.
B176: scooptram, 6 yd3 bucket | D176: scoop | E176: $/hr | F176: 150.96 | G176: 0 | H176: 0
B177: flat bed truck with hiab | D177: hiab | F177: 133.62 | G177: 0 | H177: 0 | J177: fuel & oper NOT included
B178: certified mech with truck | E178: $hr | F178: 204 | G178: 0 | H178: 0

Sheet Title
C2: RECLAMATION COST ESTIMATING MODEL (Version 6.1)
D5: Prepared for:
A6: Water Resources Division
C7: Department of Indian Affairs and Northern Development (DIAND)
C9: Prepared by:
A10: Steffen Robertson and Kirsten (Canada) Inc. (SRK)
C11: M. John Brodie and Patrick J. Bryan | F11: Version 1.1 | G11: Lotus 123 | I11: April 1992
C12: R .C. Olauson and R.W. Chambers | F12: Version 2.1 | G12: Lotus 123 | I12: April 1994
A14: Brodie Consulting Ltd.
C15: M. John Brodie and Kitty Brodie | F15: Version 3.1 | G15: Quattro Pro | I15: November 1997
A17: Brodie Consulting Ltd.
C18: M. John Brodie and Kitty Brodie | F18: Version 4.0 | G18: Excel | I18: March 2001
F19: Version 4.2 | G19: Excel | I19: October 2001
A21: Brodie Consulting Ltd.
C22: M. John Brodie and Kitty Brodie | F22: Version 5.1 | G22: Excel | I22: 2005-08-01
A24: Brodie Consulting Ltd.
C25: M. John Brodie and Kitty Brodie | F25: Version 6.1 | G25: Excel | I25: 2009-03-01
